{"text_format":"1","workbook":"xlsx","n_sheets":21,"sheets":["Cover Page","Contents","Facility Info","Operational Data","Operational Summary","Perf. Form 1","Energy Form 1","Permit Compliance","Improvements","Public Liasion","Residue Quality ","Water","Air (periodic)","Air (CEMS)","HCl","SO2","NOx","TOC","Particulates","CO 0.5hourly","NH3"],"not_rendered":{"charts":7,"images":3,"macros":1,"external_links":0,"defined_names":21,"comments":0,"pivot_tables":0},"unopened":[],"bounds":{"document_bytes":16777216,"sheet_cells":100000,"rows_first":2000,"rows_last":500,"rows_between":2000,"halvings":0,"cell_chars":16384,"cell_head_chars":4096},"cells_cut":0,"cells_raw":0,"read":"whole","date_system":"1900"}

{"sheet":"Cover Page","index":0,"n_rows":53,"n_cols":14,"rows_kept":53,"cut":false,"hidden":false,"merged":[[13,13,18,15],[34,1,34,8],[0,3,5,6],[7,1,23,8],[28,1,28,8],[30,1,30,8],[32,1,32,8],[48,2,48,3],[48,6,48,8],[52,2,52,3],[36,1,36,8],[40,2,40,8],[42,2,42,4],[44,2,44,4],[46,2,46,3],[46,6,46,8]]}
[null,null,null,"Add company logo"]
[null,null,null,null,null,null,null,null,null,null,null,null,null,"Version 2.1 11/11/19"]
[]
[]
[]
[]
[]
[null,"Add photo"]
[]
[]
[]
[]
[null,null,null,null,null,null,null,null,null,null,null,null,null,"Notes:"]
[null,null,null,null,null,null,null,null,null,null,null,null,null,"This template may require adjustments by individual operators to meet specific reporting requirements as defined in the site Permit(s)"]
[]
[]
[]
[]
[]
[]
[]
[]
[]
[]
[]
[]
[]
[]
[null,"Annual Performance Report 2020"]
[]
[null,"Permit EPR/BT4249"]
[]
[null,"Newlincs Development IWMF"]
[]
[null,"other name of facility (if applicable)"]
[]
[null,"operator name"]
[]
[null,"Year:",2020]
[]
[null,"Address:","South Marsh Road, Stallingborough, NE Lincs. DN41 8BZ"]
[]
[null,"Tel: ","01469 552550"]
[]
[null,"Email: ","info@newlincs.com"]
[]
[null,"Prepared by:","Darren Rea",null,null,"Position:","Systems Engineer"]
[]
[null,"Approved by:","Stephen Gilbert",null,null,"Position:","Plant Manager"]
[]
[null,"Version:",1]
[]
[null,"Issue Date:"," "]

{"sheet":"Contents","index":1,"n_rows":44,"n_cols":11,"rows_kept":44,"cut":false,"hidden":false,"merged":[[4,10,7,14],[8,1,8,6],[3,1,3,6],[4,1,4,6],[5,1,5,6],[6,1,6,6],[20,1,20,6],[9,1,9,6],[10,1,10,6],[11,1,11,6],[12,1,12,6],[13,1,13,6],[14,1,14,6],[15,1,15,6],[16,1,16,6],[17,1,17,6],[18,1,18,6],[19,1,19,6],[35,1,35,6],[21,1,21,6],[22,1,22,6],[23,1,23,6],[26,1,26,6],[27,1,27,6],[28,1,28,6],[29,1,29,6],[30,1,30,6],[31,1,31,6],[34,1,34,6],[43,0,46,9],[36,1,36,6],[37,1,37,6],[38,1,38,6],[39,1,39,6],[40,1,40,6],[41,1,41,6]]}
[{"$f":"+'Cover Page'!$B$29","v":"Annual Performance Report 2020"},null,null,null,{"$f":"+'Cover Page'!$B$33","v":"Newlincs Development IWMF"}]
[]
["Contents",null,null,null,null,null,null,null,null,null,"Notes:"]
["Section","Subject",null,null,null,null,null,"Page ",null,null,"Section references and Page nos. to be inserted"]
[null,"Facility Information",null,null,null,null,null,3,null,null,"Sections and Subjects may require adjustment by individual operators to meet specific reporting requirements as defined in the sites Permit(s)"]
[null,"Operational Data",null,null,null,null,null,4]
[null,"Summary of Plant Operations and Maintenance ",null,null,null,null,null,6]
[null,"Summary of Residue Handling",null,null,null,null,null,6]
[null,"Performance 1 Form",null,null,null,null,null,7]
[null,"Energy Usage",null,null,null,null,null,8]
[null,"Permit Compliance",null,null,null,null,null,9]
[null,"Improvements",null,null,null,null,null,10]
[null,"Public Liaison",null,null,null,null,null,11]
[null,"Residue Quality ",null,null,null,null,null,12]
[null,"Emissions to Water",null,null,null,null,null,13]
[null,"Emissions to Air (periodically monitored)",null,null,null,null,null,14]
[null,"Emissions to Air (continuously monitored)",null,null,null,null,null,15]
[null,"Hydrogen Chloride emissions",null,null,null,null,null,16]
[null,"Sulphur Dioxide emissions",null,null,null,null,null,17]
[null,"Oxides of Nitrogen emissions",null,null,null,null,null,18]
[null,"Total Organic Carbon emissions",null,null,null,null,null,19]
[null,"Particulate Matter emissions",null,null,null,null,null,20]
[null,"Carbon Monoxide emissions",null,null,null,null,null,21]
[null,"Ammonia emissions",null,null,null,null,null,22]
[]
["Version Control"]
["Version","Information",null,null,null,null,null,"Date"]
[1,"Report issued",null,null,null,null,null," "]
[]
[]
[]
[]
[]
["Distribution"]
["Copy","Name, Role",null,null,null,null,null,"No."]
[1,"Environment agency",null,null,null,null,null," "]
[]
[]
[]
[]
[]
[]
[]
["This report is required under the Industrial Emissions Directive’s Article 55(2) requirements on reporting and public information on waste incineration plants and co-incineration plants, which require the operator to produce an annual report on the functioning and monitoring of the plant and make it available to the public. "]

{"sheet":"Facility Info","index":2,"n_rows":22,"n_cols":5,"rows_kept":22,"cut":false,"hidden":false,"merged":[[4,0,17,8],[21,0,53,8],[4,10,13,13],[21,10,30,13]]}
[{"$f":"+'Cover Page'!$B$29","v":"Annual Performance Report 2020"},null,null,null,{"$f":"+'Cover Page'!$B$33","v":"Newlincs Development IWMF"}]
[]
["Plant Description and Design"]
[]
["The NEWLINCS energy from waste plant located at Stallingborough, near Grimsby, has been operating since 2003 providing MSW disposal services for North-East Lincolnshire Council. The waste process mainly originates residents the North-East Lincolnshire Council catchment area.\nThe main purpose of the energy from waste plant is to burn municipal waste and to recover energy. The plant comprises of waste reception, storage of waste-fuel, combustion kiln, combustion air supply systems, boiler, steam turbine generator, hot water production, flue gas treatment, flue gas stack, separation and storage of residues, industrial water storage, plant control systems and recording and monitoring devices.\nThe plant has a design capacity of 7 tonnes per hour, which equates to 56,000 tonnes per annum including an allowance for plant shutdown. There is one waste incineration stream. The heat produced is used to generate electricity for own use and export to the neighbouring chemical manufacturing plant or the national grid along with hot water which is also exported to the same adjacent plant. The process generates approximately 3MW of electricity and 3MW of heat."]
[]
[]
[]
[]
[]
[]
[]
[]
[]
[]
[]
[]
[]
[]
["Summary of Operational Processes and Procedures"]
[]
["Waste is delivered to the plant in covered vehicles which are weighed before tipping tip into a waste storage pit within a fully enclosed building. The building is maintained under slight negative pressure to stop odour from the waste escaping, there is no odour produced by the incineration process. A 1.5 m3 grab transfers waste to the feed hopper of the combustion plant. The grab is also used to homogenise the waste and to identify and remove any non-conforming waste. Incineration takes place inside a conical oscillating combustion cell this is a particularly effective solution for smaller scale EfW plants. The tapered cylindrical cell is inclined by several degrees from the horizontal and oscillates by one hundred and five degrees either side of the vertical. The twin wall combustion cell is a one-piece steel fabrication lined with cast refractory 200mm thick. Primary combustion air is fed in below the waste to promote good combustion. Secondary combustion air is injected above the waste where it provides for good mixing and combustion control.  \nThe combustion gases exit the combustion cell and pass into the post-combustion chamber and then to the heat recovery boiler. The geometry and mechanical layout ensures a high degree of turbulence both in the bed of burning material and in the combustion flue gas. \nThe combustion control system regulates the waste feed, combustion cell speed and combustion fans to maintain efficient combustion. \nUrea is injected into the combustion chamber to react with the oxides of nitrogen, chemically reducing them to nitrogen and water. \nAuxiliary low NOx gas burners are fitted for start-up and to ensure that a temperature above 850C for 2 seconds can always be maintained. \nThe steam raised in the boiler plant is fed to a steam turbine, which generates electricity, the steam is then condensed and recycled to the boiler.  \nThe water make-up is taken from the mains supply and is treated in a demineralisation plant prior to use in the boiler. \nHot water is generated, and its energy content exported by means of a closed loop to the neighbouring chemical manufacturing factory. \nFlue gases pass from the boiler to flue gas treatment (FGT) plant; flue gas enters a reaction chamber where powdered lime and activated carbon are injected to neutralise acid gases and absorb dioxins/furans, dioxin like PCBs, volatile organic compounds (VOCs) and mercury. There is a continuous recirculation of lime and ash in the reaction chamber in order to improve the efficiency of the neutralisation reaction. Bag filters remove the fine ash, excess lime and carbon as the gases pass across the bag fabric. The residues (APCR) from the filter are collected and stored a silo. The cleaned gas then discharges to atmosphere via one 55-metre stack at an efflux velocity in excess of 15m sec. Bottom ash (IBA), separated ferrous metals and APCR are sent for disposal or recovery off site by licensed contractors subject to waste licensing legislation. \nAll process waste waters pass to the industrial water lagoon for closed loop recycling of waters used by the process. Clean run off water from roofs is discharge to local drainage. \nRegular analysis of the IBA and APC residues is carried out. Duty/standby Continuous Emission Monitoring (CEM) system monitor and record the stack flue gas emissions. All emissions monitoring is in accordance with site permit/EA guidance.  The site operates to ISO 9001 14001 & OHSAS 18001 procedures"]

{"sheet":"Operational Data","index":3,"n_rows":61,"n_cols":8,"rows_kept":61,"cut":false,"hidden":false,"merged":[[32,1,37,1],[29,2,29,5],[29,6,29,7],[3,1,3,2],[7,1,19,1],[22,1,25,1],[27,1,28,1]]}
[{"$f":"+'Cover Page'!$B$29","v":"Annual Performance Report 2020"},null,null,null,{"$f":"+'Cover Page'!$B$33","v":"Newlincs Development IWMF"}]
[]
["Operational Data"]
["Plant Size",null,null,"tonnes pa",null,"MWth",null,"MWe"]
["No. of combustion lines",1,null,"No. of Turbines:",null,1]
[]
["Waste types received","Unit","Q1","Q2","Q3","Q4","Year Total","%"]
["Household / Local Authority","tonnes",13124.88,13659.12,13415.29,12804.91,{"$f":"SUM(C8:F8)","v":53004.2},{"$f":"IF(G8>0,G8/$G$18,\"-\")","v":0.97852221623258184}]
["Commercial & Industrial ",null,229.32,383.96,230.04,320.08,{"$f":"SUM(C9:F9)","v":1163.3999999999999},2.1477783767418161E-2]
["Hazardous ",null," ",null,null,null,0,"-"]
["Clinical",null," ",null,null,null,0,"-"]
["Waste wood (biomass) ",null," ",null,null,null,0,"-"]
["Refuse derived fuel ",null," ",null,null,null,0,"-"]
["Solid recovered fuel ",null," ",null,null,null,0,"-"]
["Other [Please specify]",null," ",null,null,null,0,"-"]
["Other [Please specify]",null," ",null,null,null,0,"-"]
["Other [Please specify]",null," ",null,null,null,0,"-"]
["Total waste received",null,{"$f":"SUM(C8:C17)","v":13354.199999999999},{"$f":"SUM(D8:D17)","v":14043.08},{"$f":"SUM(E8:E17)","v":13645.330000000002},{"$f":"SUM(F8:F17)","v":13124.99},{"$f":"SUM(G8:G17)","v":54167.6},{"$f":"IF(G18>0,G18/$G$18,\"-\")","v":1}]
["Rejected Waste ",null,null,null,null,null,{"$f":"SUM(C19:F19)","v":0},{"$f":"IF(G19>0,G19/$G$18,\"-\")","v":"-"}]
["Waste transferred out",null,null,null,null,null,{"$f":"SUM(C20:F20)","v":0},{"$f":"IF(G20>0,G20/$G$18,\"-\")","v":"-"}]
[]
["Energy Usage / Export","Unit","Q1","Q2","Q3","Q4","Year Total","KWh/te"]
["Power Generated","MWh",6212,6369,5677,6076,{"$f":"SUM(C23:F23)","v":24334},{"$f":"IF(G23>0,G23*1000/$G$18,\"-\")","v":449.23533625266765}]
["Power Exported",null,5045.1000000000004,5132.5,4943.2,4918.3999999999996,{"$f":"SUM(C24:F24)","v":20039.199999999997},{"$f":"IF(G24>0,G24*1000/$G$18,\"-\")","v":369.94808704834617}]
["Power Used on site",null,1218.146,1255.3520000000001,784.41700000000003,1194.3240000000001,{"$f":"SUM(C25:F25)","v":4452.2389999999996},82.193765276659846]
["Power Imported",null,51.2,19.2,50.8,36.9,158.1,2.9187189389967436]
["Parasitic Load","%",{"$f":"IF(C23>0,1-C24/(C23+C26),\"-\")","v":0.19448524715800219},{"$f":"IF(D23>0,1-D24/(D23+D26),\"-\")","v":0.19656554271938886},0.13698103984077659,0.19540643557067838,0.18180964474259054]
["Thermal Energy Produced","GWh",5.141,4.3970000000000002,4.2990000000000004,4.1429999999999998,{"$f":"SUM(C28:F28)","v":17.98},0.33193274208198259]
["Thermal Energy Exported",null,1.4139999999999999,1.93,1.8720000000000001,1.909,7.125,0.13153619506863881]
["R1 value",null,"N/A",null,null,null,"Design / Operational / n/a"]
[]
["Waste Disposal & Recovery","Unit","Q1","Q2","Q3","Q4","Year Total","% inputs"]
["APC Residues - produced","tonnes",613.96,590.9,619.4,579.17999999999995,{"$f":"SUM(C33:F33)","v":2403.44},{"$f":"IF(G33>0,G33/$G$18,\"-\")","v":4.4370435463265863E-2}]
["IBA - produced",null,2465.2800000000002,2196.08,2257.7800000000002,1912.98,8832.1200000000008,{"$f":"IF(G34>0,G34/$G$18,\"-\")","v":0.16305171357047388}]
["Metals recycling",null,326.48,325.24,328.48,264.52,{"$f":"SUM(C35:F35)","v":1244.72},{"$f":"IF(G35>0,G35/$G$18,\"-\")","v":2.2979050207134893E-2}]
["Other",null,0,0,0,0,{"$f":"SUM(C36:F36)","v":0},{"$f":"IF(G36>0,G36/$G$18,\"-\")","v":"-"}]
["Other",null,0,0,0,0,0,{"$f":"IF(G37>0,G37/$G$18,\"-\")","v":"-"}]
["Other",null,0,0,0,0,0,{"$f":"IF(G38>0,G38/$G$18,\"-\")","v":"-"}]
[]
["Raw Material Usage","Unit","Q1","Q2","Q3","Q4","Year Total","kg or Ltr /te"]
["Mains Water","m3",860,971,1066,845,{"$f":"SUM(C41:F41)","v":3742},{"$f":"IF(G41>0,G41*1000/$G$18,\"-\")","v":69.081886589031086}]
["Other Water","m3",null,null,null,null,0,{"$f":"IF(G42>0,G42*1000/$G$18,\"-\")","v":"-"}]
["Ammonia / Urea","kgs",2093.587,2391.3040000000001,2558.6959999999999,1113.152,8156.7389999999996,150.58335610217179]
["Activated Carbon","kgs",4798.32,5066.04,4900.2700000000004,4892.66,19657.29,362.89756238046363]
["Lime / hydrated lime","kgs",85210,95260,89210,95290,364970,6737.7915949755943]
["Fuel oil","ltrs",null,null,null,null,0,"-"]
["Gas","cf",864467.7,318644.2,1022254,648447.9,2853813.8,52684.885429666443]
["Other",null,0,0,0,0,0,"-"]
[]
["Summary of Hours","Line/Unit","Q1","Q2","Q3","Q4","Year Total"]
["Hours of waste combustion, total",{"$f":"+B5","v":1},1999.3,2110.85,2041.78,2038.61,{"$f":"SUM(C51:F51)","v":8190.5399999999991}," x %"]
["Hours of waste combustion, total",2,"n/a","n/a","n/a","n/a",0,"x %"]
["Hours of waste combustion, total",3,"n/a","n/a","n/a","n/a",0,"x %"]
["Hours of waste combustion, total",4,"n/a","n/a","n/a","n/a",0,"x %"]
["Hours of waste combustion, total",5,"n/a","n/a","n/a","n/a",{"$f":"SUM(C55:F55)","v":0},"x %"]
["Hours of turbine operations, total",1,2016.6,2109.6999999999998,2042.2,2035.5,8204,"x %"]
["Hours of turbine operations, total",2,null,null,null,null,0,"x %"]
["Hours of heat / steam export",null,"n/a","n/a","n/a","n/a",0,{"$f":"IF(B58>0,G57/8760,\"n/a\")","v":"n/a"}]
["Abnormal Events","qty.",0,0,0,0,0,{"$f":"IF(G59>0,\"yes\",\"no\")","v":"no"}]
["Abnormal operation","hours",0,0,0,0,0,{"$f":"+(G60)/8760","v":0}]
["Permit Breaches","qty.",0,0,0,0,0,{"$f":"IF(G61>0,\"yes\",\"no\")","v":"no"}]

{"sheet":"Operational Summary","index":4,"n_rows":31,"n_cols":11,"rows_kept":31,"cut":false,"hidden":false,"merged":[[4,0,26,8],[30,0,51,8],[4,10,13,13],[30,10,39,13]]}
[{"$f":"+'Cover Page'!$B$29","v":"Annual Performance Report 2020"},null,null,null,{"$f":"+'Cover Page'!$B$33","v":"Newlincs Development IWMF"}]
[]
["Summary of Plant Operations and Maintenance during the reporting year",null,null,null,null,null,null,null,null,null,"Notes:"]
[]
["During 2020 the plant operated for 8191 hours, scheduled maintenance was undertaken in November main works included boiler feed pump replacement, economiser tube repairs and steam turbine maintenance.  ",null,null,null,null,null,null,null,null,null,"Include summary of key operational and/or mainteanance activity undertaken in the year, such as any major component upgrades and/or replacements "]
[]
[]
[]
[]
[]
[]
[]
[]
[]
[]
[]
[]
[]
[]
[]
[]
[]
[]
[]
[]
[]
[]
[]
["Summary of Residue Handling for the reporting year"]
[]
["Air Pollution Control residues (APCR) is disposed of at permitted treatment centre where the material is stabilised and disposed of in a hazardous landfill site.\n\nIncinerator Bottom Ash (IBA) produced is recycled at a permitted treatment centre to produce Incinerator bottom ash aggregate (IBAA) which is used as a blend constituent in various aggregate mixtures.\nThe process involves screening the material, separating the ferrous and non-ferrous metals for recycling, re-screening, then further metal removal and then final product stockpiling.\n",null,null,null,null,null,null,null,null,null,"Include in here a summary of residue handling regimes and destinations "]

{"sheet":"Perf. Form 1","index":5,"n_rows":54,"n_cols":10,"rows_kept":54,"cut":false,"hidden":false,"merged":[[9,0,9,9],[10,0,10,1],[10,2,10,3],[10,4,10,5],[10,6,10,7],[10,8,10,9],[2,0,2,4],[2,6,2,8],[3,1,3,4],[5,3,5,4],[5,6,5,7],[8,0,8,1],[8,2,8,3],[8,4,8,5],[8,6,8,7],[8,8,8,9],[11,0,11,1],[11,2,11,3],[11,4,11,5],[11,6,11,7],[11,8,11,9],[12,0,12,1],[12,2,12,3],[12,4,12,5],[12,6,12,7],[12,8,12,9],[15,0,15,1],[15,2,15,3],[15,4,15,5],[15,6,15,7],[15,8,15,9],[16,0,16,9],[13,0,13,1],[13,2,13,3],[13,4,13,5],[13,6,13,7],[13,8,13,9],[14,0,14,3],[14,4,14,5],[14,6,14,7],[14,8,14,9],[17,0,17,1],[17,2,17,3],[17,4,17,5],[17,6,17,7],[17,8,17,9],[18,0,18,1],[18,2,18,3],[18,4,18,5],[18,6,18,7],[18,8,18,9],[19,0,19,1],[19,2,19,3],[19,4,19,5],[19,6,19,7],[19,8,19,9],[20,0,20,1],[20,2,20,3],[20,4,20,5],[20,6,20,7],[20,8,20,9],[21,0,21,1],[21,2,21,3],[21,4,21,5],[21,6,21,7],[21,8,21,9],[22,0,22,3],[22,4,22,5],[22,6,22,7],[22,8,22,9],[31,0,31,3],[31,7,31,8],[32,0,32,3],[32,4,32,5],[32,7,32,8],[33,0,33,3],[33,4,33,5],[33,7,33,8],[23,0,23,3],[23,4,23,5],[23,6,23,7],[23,8,23,9],[25,0,25,9],[26,0,28,9],[36,0,36,3],[36,4,36,5],[36,7,36,8],[37,0,37,3],[37,4,37,5],[37,7,37,8],[34,0,34,3],[34,4,34,5],[34,7,34,8],[35,0,35,3],[35,4,35,5],[35,7,35,8],[47,0,47,1],[49,0,49,9],[50,0,51,9],[38,0,38,9],[39,0,40,9],[43,0,43,1],[43,2,43,9],[45,0,45,1],[46,0,46,1]]}
[{"$f":"+'Cover Page'!C39","v":2020}," Annual Reporting Performance Form 1"]
[]
[{"$f":"+'Cover Page'!B31","v":"Permit EPR/BT4249"},null,null,null,null,"Operator: ",{"$f":"+'Cover Page'!B37:I37","v":0}]
["Facility:",{"$f":"+'Cover Page'!B33:I33","v":"Newlincs Development IWMF"},null,null,null,"Form:","Performance 1"]
[]
["Reporting  Period from: ",null,null,"2020-01-01",null,"to:","2020-12-31"]
[]
[{"$f":"+A1","v":2020},"Annual Reporting of Waste Disposal and Recovery"]
["Waste Description",null,"Disposal Route(s)",null,"Disposal Tonnes",null,"Recovery Tonnes",null,"% / tonne of waste incinerated"]
["1) Hazardous Wastes"]
["APC Residues",null,"D01",null,2403,null,null,null,{"$f":"IF((E11+G11)>0,(E11+G11)/'Operational Data'!$G$18, \"-\")","v":4.4362312526307242E-2}]
["IBA",null,null,null,null,null,null,null,{"$f":"IF((E12+G12)>0,(E12+G12)/'Operational Data'!$G$18, \"-\")","v":"-"}]
[null,null,null,null,null,null,null,null,{"$f":"IF((E13+G13)>0,(E13+G13)/'Operational Data'!$G$18, \"-\")","v":"-"}]
[null,null,null,null,null,null,null,null,{"$f":"IF((E14+G14)>0,(E14+G14)/'Operational Data'!$G$18, \"-\")","v":"-"}]
["Total Hazardous Waste",null,null,null,{"$f":"SUM(E11:F14)","v":2403},null,{"$f":"SUM(G11:H14)","v":0},null,{"$f":"IF((E15+G15)>0,(E15+G15)/'Operational Data'!$G$18, \"-\")","v":4.4362312526307242E-2}]
[]
["2) Non-Hazardous Wastes"]
["IBA",null,"R5",null,8832,null,null,null,{"$f":"IF((E18+G18)>0,(E18+G18)/'Operational Data'!$G$18, \"-\")","v":0.16304949822403061}]
["Ferrous Metal",null,"R4",null,1245,null,null,null,{"$f":"IF((E19+G19)>0,(E19+G19)/'Operational Data'!$G$18, \"-\")","v":2.2984219348835835E-2}]
["Process Water",null,null,null,null,null,null,null,{"$f":"IF((E20+G20)>0,(E20+G20)/'Operational Data'!$G$18, \"-\")","v":"-"}]
[null,null,null,null,null,null,null,null,{"$f":"IF((E21+G21)>0,(E21+G21)/'Operational Data'!$G$18, \"-\")","v":"-"}]
[null,null,null,null,null,null,null,null,{"$f":"IF((E22+G22)>0,(E22+G22)/'Operational Data'!$G$18, \"-\")","v":"-"}]
["Total Non-Hazardous Waste",null,null,null,{"$f":"SUM(E18:F22)","v":10077},null,{"$f":"SUM(G18:H22)","v":0},null,{"$f":"IF((E23+G23)>0,(E23+G23)/'Operational Data'!$G$18, \"-\")","v":0.18603371757286644}]
["TOTAL WASTE",null,null,null,{"$f":"+E23+E15","v":12480},null,{"$f":"+G23+G15","v":0},null,{"$f":"IF((E24+G24)>0,(E24+G24)/'Operational Data'!$G$18, \"-\")","v":0.23039603009917367}]
[]
["Operator’s comments :"]
[]
[]
[]
[]
[{"$f":"+A1","v":2020},"Annual Reporting of Water and Other Raw Material Usage"]
["Raw Material",null,null,null,"Usage",null,"Unit","Specific Useage",null,"Unit"]
["Mains Water",null,null,null,3742,null,"m3",{"$f":"IF(E33>0,E33/'Operational Data'!$G$18,\"-\")","v":6.9081886589031083E-2},null,"m3/te"]
["Total Water",null,null,null,3742,null,"m3",{"$f":"IF(E34>0,E34/'Operational Data'!$G$18,\"-\")","v":6.9081886589031083E-2},null,"m3/te"]
["Urea / Ammonia",null,null,null,8156.74,null,"kg",{"$f":"IF(E35>0,E35/'Operational Data'!$G$18,\"-\")","v":0.15058337456339213},null,"kg/te"]
["Activated Carbon",null,null,null,19657.3,null,"kg",{"$f":"IF(E36>0,E36/'Operational Data'!$G$18,\"-\")","v":0.36289774699266719},null,"kg/te"]
["Lime / hydrated lime / Sodium Bicarb.",null,null,null,364970,null,"kg",{"$f":"IF(E37>0,E37/'Operational Data'!$G$18,\"-\")","v":6.7377915949755947},null,"kg/te"]
[]
["Operator’s comments :"]
[]
[]
[]
[{"$f":"+A31","v":2020},"Annual Reporting of other performance indicators "]
["Parameter",null,"Results by Line"]
[null,null,"A1","A2","A3","A4","A5",null,"Turbine 1","Turbine 2"]
["Operating hours for the year, hours",null,8191,null,null,null,null,null,8204]
["Number of periods of abnormal operation, qty.",null,0]
["Cumulative hours of abnormal operation for this year, hours",null,0]
[]
["Operator’s comments :"]
[]
[]
[]
["Signed: ",null,null,null,null,null,"Date:"," "]

{"sheet":"Energy Form 1","index":6,"n_rows":29,"n_cols":7,"rows_kept":29,"cut":false,"hidden":false,"merged":[[2,6,2,8],[4,1,4,4],[6,3,6,4],[6,6,6,7],[8,0,8,2],[8,3,8,4],[8,6,8,8],[9,0,9,2],[9,3,9,4],[9,6,9,8],[10,0,10,2],[10,3,10,4],[10,6,10,8],[11,0,11,2],[11,3,11,4],[11,6,11,8],[12,0,12,2],[12,3,12,4],[12,6,12,8],[13,0,13,2],[13,3,13,4],[13,6,13,8],[14,0,14,2],[14,3,14,4],[14,6,14,8],[15,0,15,2],[15,3,15,4],[15,6,15,8],[17,0,17,8],[18,0,24,8]]}
[{"$f":"+'Cover Page'!C39","v":2020}," Annual Reporting of Energy Usage/Export"]
[]
[{"$f":"+'Cover Page'!B31","v":"Permit EPR/BT4249"},null,null,null,null,"Operator: ",{"$f":"+'Cover Page'!B37:I37","v":0}]
[]
["Facility:",{"$f":"+'Cover Page'!B33:I33","v":"Newlincs Development IWMF"},null,null,null,"Form:","Energy 1"]
[]
["Reporting  Period from: ",null,null,{"$f":"+'Perf. Form 1'!D6:E6","v":"2020-01-01"},null,"to:",{"$f":"+'Perf. Form 1'!G6:H6","v":"2020-12-31"}]
[]
["Energy Source",null,null,"Energy Usage",null,"Unit","Specific Usage (KWh/tonne incinerated"]
["Electricity Produced",null,null,24333,null,"MWh",{"$f":"+'Operational Data'!H23","v":449.23533625266765}]
["Electricity Imported   ",null,null,158.1,null,"MWh",{"$f":"+'Operational Data'!H26","v":2.9187189389967436}]
["Electricity Exported",null,null,20039,null,"MWh",{"$f":"+'Operational Data'!H24","v":369.94808704834617}]
["Gas Oil",null,null,"N/A",null,"tonnes"]
["Steam/hot water exported",null,null,7.125,null,"GWh",{"$f":"+'Operational Data'!H29","v":0.13153619506863881}]
[]
[]
[]
["Operator’s comments :"]
[]
[]
[]
[]
[]
[]
[]
[]
[]
[]
["Signed: ",null,null,null,null,null,"Date:"]

{"sheet":"Permit Compliance","index":7,"n_rows":34,"n_cols":8,"rows_kept":34,"cut":false,"hidden":false,"merged":[[33,4,33,8],[9,0,9,1],[9,2,9,4],[9,5,9,8],[7,0,7,1],[7,2,7,8],[8,0,8,1],[8,2,8,4],[8,5,8,8],[10,0,10,1],[10,2,10,4],[10,5,10,8],[11,0,11,1],[11,2,11,4],[11,5,11,8],[12,0,12,1],[12,2,12,4],[12,5,12,8],[13,0,13,1],[13,2,13,4],[13,5,13,8],[14,0,14,1],[14,2,14,4],[14,5,14,8],[15,0,15,1],[16,2,16,4],[16,5,16,8],[15,2,15,4],[15,5,15,8],[16,0,16,1],[19,1,19,3],[19,4,19,6],[19,7,19,9],[20,1,20,3],[20,4,20,6],[20,7,20,9],[24,7,24,9],[21,1,21,3],[21,4,21,6],[21,7,21,9],[22,1,22,3],[22,4,22,6],[22,7,22,9],[32,1,32,3],[32,4,32,6],[32,7,32,9],[29,1,29,3],[29,4,29,6],[29,7,29,9],[30,1,30,3],[30,4,30,6],[30,7,30,9],[26,0,26,10],[18,0,18,10],[31,1,31,3],[31,4,31,6],[31,7,31,9],[27,1,27,3],[27,4,27,6],[27,7,27,9],[28,1,28,3],[28,4,28,6],[28,7,28,9],[23,1,23,3],[23,4,23,6],[23,7,23,9],[24,1,24,3],[24,4,24,6]]}
[{"$f":"+'Cover Page'!$B$29","v":"Annual Performance Report 2020"},null,null,null,{"$f":"+'Cover Page'!$B$33","v":"Newlincs Development IWMF"}]
[]
["Summary of Permit Compliance"]
[]
["Compliance with permit limits for continuously monitored pollutants"]
[]
["The plant met its emission limits as shown in the table below:"]
["Substance",null,"Percentage time compliant during operation"]
[null,null,"Half-hourly limit",null,null,"Daily limit"]
["Particulates",null,1,null,null,1]
["Oxides of nitrogen",null,1,null,null,1]
["Sulphur dioxide",null,1,null,null,1]
["Carbon monoxide",null,1,null,null,1]
["Total organic carbon",null,1,null,null,1]
["Hydrogen chloride",null,1,null,null,1]
["Hydrogen fluoride"]
[null,null,1,null,null,1]
[]
["Summary of any notifications or non-compliances under the permit"]
["Date","Summary of notification or non-compliance [including Line/Reference]",null,null,"Reason ",null,null,"Measures taken to prevent reoccurrence"]
["2020-05-18","Non notification of malfunction, breakdown or failure of plant or techniques",null,null,"AST identified invalid calibration functions for some components",null,null,"QAL2 carried out, new calibration functions derivied and implemented."]
["2020-05-18","Non notification of malfunction, breakdown or failure of plant or techniques",null,null,"Schedule 1 form not completed and sent",null,null,"EMS procedures and staff training reviewed"]
[]
[]
[]
[]
["Summary of any complaints received and actions to taken to resolve them."]
["Date","Summary of complaint [including Line/Reference]",null,null,"Reason *",null,null,"Measures taken to prevent reoccurrence"]
[null,"None"]
[]
[]
[]
[]
[null,null,null,null,"* including whether substantiated by the operator or the EA"]

{"sheet":"Improvements","index":8,"n_rows":39,"n_cols":5,"rows_kept":39,"cut":false,"hidden":false,"merged":[[37,0,37,9],[38,0,47,9],[4,0,4,9],[5,0,13,9],[15,0,15,9],[16,0,24,9],[26,0,26,9],[27,0,35,9]]}
[{"$f":"+'Cover Page'!$B$29","v":"Annual Performance Report 2020"},null,null,null,{"$f":"+'Cover Page'!$B$33","v":"Newlincs Development IWMF"}]
[]
["Summary of Plant Improvements"]
[]
["Summary of any efficiency improvements that have been completed within the year."]
["None"]
[]
[]
[]
[]
[]
[]
[]
[]
[]
["Summary of any permit improvement conditions that have been completed within the year and the resulting environmental benefits."]
["None"]
[]
[]
[]
[]
[]
[]
[]
[]
[]
["Summary of any changes to the plant or operating techniques which required a variation to the permit and a summary of the resulting environmental impact."]
["None"]
[]
[]
[]
[]
[]
[]
[]
[]
[]
["Summary of any other improvements made to the plant or planned to be made and a summary of the resulting environmental benefits."]
["Replacement of CEMs apparatus planned for 2021"]

{"sheet":"Public Liasion","index":9,"n_rows":29,"n_cols":5,"rows_kept":29,"cut":false,"hidden":false,"merged":[[16,0,16,1],[16,2,16,9],[5,0,5,1],[5,2,5,9],[6,0,7,1],[6,2,7,9],[8,0,9,1],[8,2,9,9],[10,0,11,1],[10,2,11,9],[12,0,13,1],[12,2,13,9],[15,0,15,9],[17,0,18,1],[17,2,18,9],[19,0,20,1],[19,2,20,9],[21,0,22,1],[21,2,22,9],[23,0,24,1],[23,2,24,9],[25,0,26,1],[25,2,26,9],[28,0,28,9]]}
[{"$f":"+'Cover Page'!$B$29","v":"Annual Performance Report 2020"},null,null,null,{"$f":"+'Cover Page'!$B$33","v":"Newlincs Development IWMF"}]
[]
["Details of Public & Stakeholder Liasion"]
[]
["Summary of events held during the reporting year."]
["Date",null,"Description"]
[null,null,"Public liaison residents panel - No meetings held during 2020"]
[]
[]
[]
[]
[]
[]
[]
[]
["List of events planned for next year"]
["Date",null,"Description"]
[null,null,"No events planned - visitors are welcome please contact us"]
[]
[]
[]
[]
[]
[]
[]
[]
[]
[]
["If you wish to be involved in the public liasion programme, please contact info@newlincs.com"]

{"sheet":"Residue Quality ","index":10,"n_rows":36,"n_cols":6,"rows_kept":36,"cut":false,"hidden":false,"merged":[[16,0,17,1],[16,2,17,6],[18,0,19,1],[18,2,19,6],[12,0,12,6],[13,0,13,1],[13,2,13,6],[5,0,6,6],[7,0,8,6],[9,0,10,6],[14,0,15,1],[14,2,15,6],[20,0,21,1],[20,2,21,6],[22,0,23,1],[22,2,23,6],[31,3,31,4],[27,2,28,2],[28,3,28,4],[28,5,28,6],[27,3,27,6],[26,0,26,6],[35,0,40,6],[32,3,32,4],[34,0,34,6],[27,0,28,1],[29,0,29,1],[30,0,30,1],[31,0,31,1],[32,0,32,1],[29,3,29,4],[30,3,30,4],[29,5,29,6],[30,5,30,6],[31,5,31,6],[32,5,32,6]]}
[{"$f":"+'Cover Page'!$B$29","v":"Annual Performance Report 2020"},null,null,null,{"$f":"+'Cover Page'!$B$33","v":"Newlincs Development IWMF"}]
[]
["Residue Quality Monitoring Requirements"]
[]
["Summary of monitoring undertaken and compliance"]
["Incinerator bottom ash samples analysed monthly for LOI analysis.\nIncinerator bottom ash and APC samples full analyisis carried out quarterly"]
[]
[]
[]
[]
[]
[]
["Commentary on any specific events"]
["Date & Event",null,"Description"]
[]
[]
[]
[]
[]
[]
[]
[]
[]
[]
[]
[]
["Residue Quality Monitoring Results"]
["Parameter (unit) ",null,"Limit","Normal Operation "]
[null,null,null,"Bottom ash  ",null,"APC Residues"]
["Loss on Ignition (%)",null,"<5%",3.19]
["ToC (%)",null,"<3%","N/A"]
["No. of Assessments Undertaken",null,"---",12,null,4]
["No. of Hazardous Assessments",null,"---","N/A"]
[]
["Comments :"]
["Reported data is the average of all 12 monthly values."]

{"sheet":"Water","index":11,"n_rows":26,"n_cols":10,"rows_kept":26,"cut":false,"hidden":false,"merged":[[5,0,6,9],[7,0,8,9],[9,0,10,9],[12,0,12,9],[13,0,13,1],[13,2,13,9],[21,0,21,9],[22,0,22,2],[22,3,22,5],[14,0,15,1],[14,2,15,9],[16,0,17,1],[16,2,17,9],[18,0,19,1],[18,2,19,9],[23,0,23,2],[23,3,23,5],[24,0,24,2],[24,3,24,5],[25,0,25,2],[25,3,25,5],[29,0,29,2],[29,3,29,5],[26,0,26,2],[26,3,26,5],[27,0,27,2],[27,3,27,5],[28,0,28,2],[28,3,28,5]]}
[{"$f":"+'Cover Page'!$B$29","v":"Annual Performance Report 2020"},null,null,null,{"$f":"+'Cover Page'!$B$33","v":"Newlincs Development IWMF"}]
[]
["Emissions to Water"]
[]
["Summary of monitoring undertaken and compliance"]
["Swales (W1, W2 and MRF) hold only clean surface water from roadways and building roofs, all are checked weekly for contamination and pH level.\n"]
[]
["pH readings are also taken prior to any release of water from swales."]
[]
[]
[]
[]
["Commentary on any specific events"]
["Date & Event",null,"Description"]
[" ",null," "]
[]
[" ",null," "]
[]
[]
[]
[]
["Emissions to Water / Sewer"]
["Parameter",null,null,"Monitoring Frequency",null,null,"Limit","Target","Max.","Average"]
["Swale pH - W1",null,null,"Weekly",null,null,9,null,9,7.83]
["Swale pH - W2",null,null,"Weekly",null,null,9,null,8.9,7.51]
["Swale pH - MRF",null,null,"Weekly",null,null,9,null,8.6999999999999993,7.85]

{"sheet":"Air (periodic)","index":12,"n_rows":40,"n_cols":13,"rows_kept":40,"cut":false,"hidden":false,"merged":[[5,12,8,15],[9,12,11,15],[8,0,8,9],[5,0,6,9],[11,0,11,1],[12,0,12,1],[11,3,11,4],[12,3,12,4],[9,0,10,1],[9,5,9,9],[9,3,10,4],[9,2,10,2],[16,0,16,1],[17,0,17,1],[18,0,18,1],[13,0,13,1],[14,0,14,1],[15,0,15,1],[39,0,40,9],[25,0,25,1],[26,0,26,1],[22,0,22,1],[23,0,23,1],[37,0,37,1],[27,0,27,1],[28,0,28,1],[29,0,29,1],[30,0,30,1],[31,0,31,1],[32,0,32,1],[37,3,37,4],[29,3,29,4],[30,3,30,4],[36,3,36,4],[38,0,38,9],[19,0,19,1],[20,0,20,1],[21,0,21,1],[34,3,34,4],[35,3,35,4],[33,0,33,1],[34,0,34,1],[35,0,35,1],[36,0,36,1],[24,0,24,1],[32,3,32,4],[13,3,13,4],[14,3,14,4],[15,3,15,4],[16,3,16,4],[17,3,17,4],[18,3,18,4],[27,3,27,4],[33,3,33,4],[19,3,19,4],[20,3,20,4],[21,3,21,4],[22,3,22,4],[23,3,23,4],[24,3,24,4],[31,3,31,4],[25,3,25,4],[26,3,26,4],[28,3,28,4]]}
[{"$f":"+'Cover Page'!$B$29","v":"Annual Performance Report 2020"},null,null,null,{"$f":"+'Cover Page'!$B$33","v":"Newlincs Development IWMF"}]
[]
["Emissions to Air (periodically monitored)"]
[]
["Summary of monitoring undertaken, standards used and compliance",null,null,null,null,null,null,null,null,null,null,null,"Notes:"]
["Monitoring undertaken quarterly to ISO15713; EN14385; MID14385; EN1948; ISO11338 as appropriate.",null,null,null,null,null,null,null,null,null,null,null,"Template may require adjustment for any bespoke monitoring requirements of permit. "]
[]
[]
["Results of emissions to air that are periodically monitored"]
["Substance",null,"Ref. Period","Emission Limit Value",null,"Average",null,null,null,null,null,null,"User to add additional tables as necessary, depending on whether quarterly or bi-annual reporting is required for the compliance year"]
[null,null,null,null,null,"A1","A2","A3","A4","A5"]
["Hydrogen fluoride",null,"1 hr","2 mg/m3",null,0.06]
["Cd and Th and their compounds",null,"6-8hrs","0.05 mg/m3",null,1.0499999999999999E-3]
["Hg and its compounds",null,"6-8hrs","0.05 mg/m3",null,8.4999999999999995E-4]
["Sb, As, Pb, Cr, Co, Cu, Mn, Ni, V and their compounds",null,"6-8hrs","0.5 mg/m3",null,7.9500000000000001E-2]
["Dioxins & Furans (I-TEQ)",null,"6-8hrs","0.1 ng/m3",null,3.6799999999999999E-2]
["PCBs (WHO-TEQ Humans / Mammals)",null,"6-8hrs","None set ng/m3",null,4.9100000000000003E-3]
["PCBs (WHO-TEQ Fish)",null,"6-8hrs","None set ng/m3",null,2.5999999999999998E-4]
["PCBs (WHO-TEQ Birds)",null,"6-8hrs","None set ng/m3",null,8.3000000000000001E-3]
["Dioxins & Furans (WHO-TEQ Humans / Mammals)",null,"6-8hrs","None set ng/m3",null,3.6799999999999999E-2]
["Dioxins & Furans (WHO-TEQ Fish)",null,"6-8hrs","None set ng/m3",null,3.7900000000000003E-2]
["Dioxins & Furans (WHO-TEQ Birds)",null,"6-8hrs","None set ng/m3",null,9.8650000000000002E-2]
["Anthanthrene",null,"6-8hrs","None set µg/m3",null,1.5E-3]
["Benzo(a)anthracene",null,"6-8hrs","None set µg/m3",null,3.5000000000000001E-3]
["Benzo(a)pyrene",null,"6-8hrs","None set µg/m3",null,9.4999999999999998E-3]
["Benzo(b)fluoranthene",null,"6-8hrs","None set µg/m3",null,0.01]
["Benzo(b)naptho(2,1-d) thiophene",null,"6-8hrs","None set µg/m3",null,3.5000000000000001E-3]
["Benzo(c)phenanthrene",null,"6-8hrs","None set µg/m3",null,2.5000000000000001E-3]
["Benzo(ghi)perylene",null,"6-8hrs","None set µg/m3",null,4.0000000000000001E-3]
["Benzo(k)fluoranthene",null,"6-8hrs","None set µg/m3",null,3.0000000000000001E-3]
["Cholanthrene",null,"6-8hrs","None set µg/m3",null,1.5E-3]
["Chrysene",null,"6-8hrs","None set µg/m3",null,9.4999999999999998E-3]
["Cyclopenta(cd)pyrene",null,"6-8hrs","None set µg/m3",null,3.0000000000000001E-3]
["Dibenzo(ai)pyrene",null,"6-8hrs","None set µg/m3",null,1.5E-3]
["Dibenzo(ah)anthracene",null,"6-8hrs","None set µg/m3",null,2.5000000000000001E-3]
["Fluoranthene",null,"6-8hrs","None set µg/m3",null,3.0499999999999999E-2]
["Indeno(123-cd) pyrene",null,"6-8hrs","None set µg/m3",null,2E-3]
["Naphthalene",null,"6-8hrs","None set µg/m3",null,0.06]
["Comments :"]
["Data reported is the average of Q1, Q2, Q3, and Q4 results."]

{"sheet":"Air (CEMS)","index":13,"n_rows":27,"n_cols":16,"rows_kept":27,"cut":false,"hidden":false,"merged":[[26,0,26,12],[13,0,14,0],[5,0,6,12],[7,0,8,12],[10,0,10,12],[11,0,12,0],[11,2,12,2],[11,1,12,1],[11,3,11,4],[11,5,11,6],[11,7,11,8],[11,9,11,10],[11,11,11,12]]}
[{"$f":"+'Cover Page'!$B$29","v":"Annual Performance Report 2020"},null,null,null,null,null,null,null,{"$f":"+'Cover Page'!$B$33","v":"Newlincs Development IWMF"}]
[]
["Emissions to Air (continuously monitored)"]
[null,null,null,null,null,null,null,null,null,null,null,null,null,null,null,"Notes:"]
["Summary of monitoring undertaken, standards used and compliance",null,null,null,null,null,null,null,null,null,null,null,null,null,null,"Template may require adjustment for any bespoke monitoring requirements of permit"]
[]
[]
[]
[]
[]
["Results of emissions to air that are continuously monitored"]
["Substance","Reference Period","Emission Limit Value","A1",null,"A2",null,"A3",null,"A4",null,"A5"]
[null,null,null,"Max.","Avg.","Max.","Avg.","Max.","Avg.","Max.","Avg.","Max.","Avg."]
["Oxides of nitrogen","Daily mean","200 mg/m3 ",197.4,196.68]
[null,"½ hourly mean","400 mg/m3 ",197.44,196.6]
["Particulates","Daily mean","10 mg/m3",0.28000000000000003,0.158]
[null,"½ hourly mean","30 mg/m3 ",0.28000000000000003,0.159]
["Total Organic Carbon ","Daily mean","10 mg/m3 ",1.44,0.372]
[null,"½ hourly mean","20 mg/m3 ",1.38,0.372]
["Hydrogen chloride ","Daily mean","10 mg/m3 ",4.3499999999999996,2.99]
[null,"½ hourly mean","60 mg/m3 ",4.3499999999999996,3.01]
["Sulphur dioxide","Daily mean","50 mg/m3 ",9.43,8.9]
[null,"½ hourly mean","200 mg/m3 ",9.57,8.92]
["Carbon monoxide ","Daily mean","50 mg/m3 ",4.04,3.6]
[null,"½ hourly mean","100 mg/m3 *",4.1500000000000004,3.7]
[" Ammonia","Daily mean","No limit set",0.13,0.03]
["* = delete or amend as appropriate"]

{"sheet":"HCl","index":14,"n_rows":79,"n_cols":17,"rows_kept":79,"cut":false,"hidden":false,"merged":[[12,16,15,18],[51,9,63,9],[66,9,78,9],[4,9,4,14],[4,1,4,3],[4,4,4,6],[48,0,51,6],[47,0,47,6],[6,9,18,9],[21,9,33,9],[36,9,48,9],[3,16,7,18],[9,16,11,18]]}
[{"$f":"+'Cover Page'!$B$29","v":"Annual Performance Report 2020"},null,null,null,{"$f":"+'Cover Page'!$B$33","v":"Newlincs Development IWMF"}]
[]
["Monitoring of Hydrogen Chloride emissions",null,null,"Whole Installation",null,null,"See  Notes in Cell Q3",null,null,{"$f":"+A3","v":"Monitoring of Hydrogen Chloride emissions"},null,null,null,"Per Combustion Line",null,null,"Notes:"]
[null,null,null,null,null,null,null,null,null,null,null,null,null,null,null,null,"User to add logic to complete Whole installation, Table A5:G18. From the data in Per Combustion Line, Table J6:O79, subject to No. of lines installed"]
["mg/Nm3","1/2 Hourly Reference Periods",null,null,"Daily Reference Periods"]
[{"$f":"+'Cover Page'!C39","v":2020},"1/2 hourly HCl ELV","Monthly 1/2 hourly mean","Highest 1/2 hourly maximum","Daily HCl ELV","Monthly daily mean","Highest daily maximum",null,null,{"$f":"+A6","v":2020},"mg/Nm3","Monthly 1/2 hourly mean","Monthly 1/2 hourly maximum","Monthly daily mean","Monthly daily maximum"]
["Jan",60,3.11,14.17,10,3.04,4.6100000000000003,null,null,"A1","Jan",3.11,14.17,3.04,4.6100000000000003]
["Feb",60,3.07,14.53,10,2.95,4.92,null,null,null,"Feb",3.07,14.53,2.95,4.92]
["Mar",60,3.16,10.84,10,3.16,5.12,null,null,null,"Mar",3.16,10.84,3.16,5.12,null,"Whole Installation table A5:G18:"]
["Apr",60,3.93,18.64,10,3.93,6.81,null,null,null,"Apr",3.93,18.64,3.93,6.81,null,"Mean: for 1/2 hourly and daily periods calculate mean of values across all operational combustion lines for the month"]
["May",60,4.3499999999999996,15.9,10,4.3499999999999996,6.17,null,null,null,"May",4.3499999999999996,15.9,4.3499999999999996,6.17]
["Jun",60,3.18,15.84,10,3.14,5.36,null,null,null,"Jun",3.18,15.84,3.14,5.36]
["Jul",60,3.44,15.66,10,3.32,4.93,null,null,null,"Jul",3.44,15.66,3.32,4.93,null,"Maximum: for 1/2 hourly and daily periods use the highest value across all operational combustion lines for the month"]
["Aug",60,3.19,17.7,10,3.19,6.32,null,null,null,"Aug",3.19,17.7,3.19,6.32]
["Sep",60,2.68,20.399999999999999,10,2.71,4.8899999999999997,null,null,null,"Sep",2.68,20.399999999999999,2.71,4.8899999999999997]
["Oct",60,2.3199999999999998,12.9,10,2.34,4.37,null,null,null,"Oct",2.3199999999999998,12.9,2.34,4.37]
["Nov",60,2.0099999999999998,10.31,10,2.04,3.45,null,null,null,"Nov",2.0099999999999998,10.31,2.04,3.45]
["Dec",60,1.73,5.92,10,1.73,2.2200000000000002,null,null,null,"Dec",1.73,5.92,1.73,2.2200000000000002]
[null,null,null,null,null,null,null,null,null,null,"Annual",{"$f":"AVERAGE(L7:L18)","v":3.0141666666666662},{"$f":"MAX(M7:M18)","v":20.399999999999999},{"$f":"AVERAGE(N7:N18)","v":2.9916666666666667},{"$f":"MAX(O7:O18)","v":6.81}]
[]
[null,null,null,null,null,null,null,null,null,{"$f":"+A6","v":2020},"mg/Nm3","Monthly 1/2 hourly mean","Monthly 1/2 hourly maximum","Monthly daily mean","Monthly daily maximum"]
[null,null,null,null,null,null,null,null,null,"A2","Jan"]
[null,null,null,null,null,null,null,null,null,null,"Feb"]
[null,null,null,null,null,null,null,null,null,null,"Mar"]
[null,null,null,null,null,null,null,null,null,null,"Apr"]
[null,null,null,null,null,null,null,null,null,null,"May"]
[null,null,null,null,null,null,null,null,null,null,"Jun"]
[null,null,null,null,null,null,null,null,null,null,"Jul"]
[null,null,null,null,null,null,null,null,null,null,"Aug"]
[null,null,null,null,null,null,null,null,null,null,"Sep"]
[null,null,null,null,null,null,null,null,null,null,"Oct"]
[null,null,null,null,null,null,null,null,null,null,"Nov"]
[null,null,null,null,null,null,null,null,null,null,"Dec"]
[null,null,null,null,null,null,null,null,null,null,"Annual",{"$f":"AVERAGE(L22:L33)","v":{"$error":"#DIV/0!"}},{"$f":"MAX(M22:M33)","v":0},{"$f":"AVERAGE(N22:N33)","v":{"$error":"#DIV/0!"}},{"$f":"MAX(O22:O33)","v":0}]
[]
[null,null,null,null,null,null,null,null,null,{"$f":"+A6","v":2020},"mg/Nm3","Monthly 1/2 hourly mean","Monthly 1/2 hourly maximum","Monthly daily mean","Monthly daily maximum"]
[null,null,null,null,null,null,null,null,null,"A3","Jan"]
[null,null,null,null,null,null,null,null,null,null,"Feb"]
[null,null,null,null,null,null,null,null,null,null,"Mar"]
[null,null,null,null,null,null,null,null,null,null,"Apr"]
[null,null,null,null,null,null,null,null,null,null,"May"]
[null,null,null,null,null,null,null,null,null,null,"Jun"]
[null,null,null,null,null,null,null,null,null,null,"Jul"]
[null,null,null,null,null,null,null,null,null,null,"Aug"]
[null,null,null,null,null,null,null,null,null,null,"Sep"]
[null,null,null,null,null,null,null,null,null,null,"Oct"]
[null,null,null,null,null,null,null,null,null,null,"Nov"]
["Comments :",null,null,null,null,null,null,null,null,null,"Dec"]
[null,null,null,null,null,null,null,null,null,null,"Annual",{"$f":"AVERAGE(L37:L48)","v":{"$error":"#DIV/0!"}},{"$f":"MAX(M37:M48)","v":0},{"$f":"AVERAGE(N37:N48)","v":{"$error":"#DIV/0!"}},{"$f":"MAX(O37:O48)","v":0}]
[]
[null,null,null,null,null,null,null,null,null,{"$f":"+A6","v":2020},"mg/Nm3","Monthly 1/2 hourly mean","Monthly 1/2 hourly maximum","Monthly daily mean","Monthly daily maximum"]
[null,null,null,null,null,null,null,null,null,"A4","Jan"]
[null,null,null,null,null,null,null,null,null,null,"Feb"]
[null,null,null,null,null,null,null,null,null,null,"Mar"]
[null,null,null,null,null,null,null,null,null,null,"Apr"]
[null,null,null,null,null,null,null,null,null,null,"May"]
[null,null,null,null,null,null,null,null,null,null,"Jun"]
[null,null,null,null,null,null,null,null,null,null,"Jul"]
[null,null,null,null,null,null,null,null,null,null,"Aug"]
[null,null,null,null,null,null,null,null,null,null,"Sep"]
[null,null,null,null,null,null,null,null,null,null,"Oct"]
[null,null,null,null,null,null,null,null,null,null,"Nov"]
[null,null,null,null,null,null,null,null,null,null,"Dec"]
[null,null,null,null,null,null,null,null,null,null,"Annual",{"$f":"AVERAGE(L52:L63)","v":{"$error":"#DIV/0!"}},{"$f":"MAX(M52:M63)","v":0},{"$f":"AVERAGE(N52:N63)","v":{"$error":"#DIV/0!"}},{"$f":"MAX(O52:O63)","v":0}]
[]
[null,null,null,null,null,null,null,null,null,{"$f":"+A6","v":2020},"mg/Nm3","Monthly 1/2 hourly mean","Monthly 1/2 hourly maximum","Monthly daily mean","Monthly daily maximum"]
[null,null,null,null,null,null,null,null,null,"A5","Jan"]
[null,null,null,null,null,null,null,null,null,null,"Feb"]
[null,null,null,null,null,null,null,null,null,null,"Mar"]
[null,null,null,null,null,null,null,null,null,null,"Apr"]
[null,null,null,null,null,null,null,null,null,null,"May"]
[null,null,null,null,null,null,null,null,null,null,"Jun"]
[null,null,null,null,null,null,null,null,null,null,"Jul"]
[null,null,null,null,null,null,null,null,null,null,"Aug"]
[null,null,null,null,null,null,null,null,null,null,"Sep"]
[null,null,null,null,null,null,null,null,null,null,"Oct"]
[null,null,null,null,null,null,null,null,null,null,"Nov"]
[null,null,null,null,null,null,null,null,null,null,"Dec"]
[null,null,null,null,null,null,null,null,null,null,"Annual",{"$f":"AVERAGE(L67:L78)","v":{"$error":"#DIV/0!"}},{"$f":"MAX(M67:M78)","v":0},{"$f":"AVERAGE(N67:N78)","v":{"$error":"#DIV/0!"}},{"$f":"MAX(O67:O78)","v":0}]

{"sheet":"SO2","index":15,"n_rows":79,"n_cols":17,"rows_kept":79,"cut":false,"hidden":false,"merged":[[3,16,7,18],[9,16,11,18],[12,16,15,18],[66,9,78,9],[4,1,4,3],[4,4,4,6],[4,9,4,14],[6,9,18,9],[21,9,33,9],[36,9,48,9],[47,0,47,6],[48,0,51,6],[51,9,63,9]]}
[{"$f":"+'Cover Page'!$B$29","v":"Annual Performance Report 2020"},null,null,null,{"$f":"+'Cover Page'!$B$33","v":"Newlincs Development IWMF"}]
[]
["Monitoring of Sulphur dioxide emissions",null,null,"Whole Installation",null,null,"See  Notes in Cell Q3",null,null,{"$f":"+A3","v":"Monitoring of Sulphur dioxide emissions"},null,null,null,"Per Combustion Line",null,null,"Notes:"]
[null,null,null,null,null,null,null,null,null,null,null,null,null,null,null,null,"User to add logic to complete Whole installation, Table A5:G18. From the data in Per Combustion Line, Table J6:O79, subject to No. of lines installed"]
["mg/Nm3","1/2 Hourly Reference Periods",null,null,"Daily Reference Periods"]
[{"$f":"+'Cover Page'!C39","v":2020},"1/2 hourly SO2 ELV","Monthly 1/2 hourly mean","Highest 1/2 hourly maximum","Daily SO2 ELV","Monthly daily mean","Highest daily maximum",null,null,{"$f":"+A6","v":2020},"mg/Nm3","Monthly 1/2 hourly mean","Monthly 1/2 hourly maximum","Monthly daily mean","Monthly daily maximum"]
["Jan",200,9.41,101.97,50,9.42,21.2,null,null,"A1","Jan",9.41,101.97,9.42,21.2]
["Feb",200,8.9,87.97,50,8.8699999999999992,13.7,null,null,null,"Feb",8.9,87.97,8.8699999999999992,13.7]
["Mar",200,8.51,71.33,50,8.51,11.97,null,null,null,"Mar",8.51,71.33,8.51,11.97,null,"Whole Installation table A5:G18:"]
["Apr",200,9.07,101.68,50,9.07,21.56,null,null,null,"Apr",9.07,101.68,9.07,21.56,null,"Mean: for 1/2 hourly and daily periods calculate mean of values across all operational combustion lines for the month"]
["May",200,8.3699999999999992,62.24,50,8.3699999999999992,14.28,null,null,null,"May",8.3699999999999992,62.24,8.3699999999999992,14.28]
["Jun",200,8.93,65.66,50,8.92,15.45,null,null,null,"Jun",8.93,65.66,8.92,15.45]
["Jul",200,9.57,88.67,50,9.09,14.34,null,null,null,"Jul",9.57,88.67,9.09,14.34,null,"Maximum: for 1/2 hourly and daily periods use the highest value across all operational combustion lines for the month"]
["Aug",200,9.52,70.510000000000005,50,9.43,17.809999999999999,null,null,null,"Aug",9.52,70.510000000000005,9.43,17.809999999999999]
["Sep",200,8.86,100.92,50,8.84,14.15,null,null,null,"Sep",8.86,100.92,8.84,14.15]
["Oct",200,9.1999999999999993,102.53,50,9.31,15.21,null,null,null,"Oct",9.1999999999999993,102.53,9.31,15.21]
["Nov",200,8.77,51.39,50,9.0500000000000007,14.23,null,null,null,"Nov",8.77,51.39,9.0500000000000007,14.23]
["Dec",200,7.98,80.87,50,7.98,15.7,null,null,null,"Dec",7.98,80.87,7.98,15.7]
[null,null,null,null,null,null,null,null,null,null,"Annual",{"$f":"AVERAGE(L7:L18)","v":8.9241666666666664},{"$f":"MAX(M7:M18)","v":102.53},{"$f":"AVERAGE(N7:N18)","v":8.9050000000000011},{"$f":"MAX(O7:O18)","v":21.56}]
[]
[null,null,null,null,null,null,null,null,null,{"$f":"+A6","v":2020},"mg/Nm3","Monthly 1/2 hourly mean","Monthly 1/2 hourly maximum","Monthly daily mean","Monthly daily maximum"]
[null,null,null,null,null,null,null,null,null,"A2","Jan"]
[null,null,null,null,null,null,null,null,null,null,"Feb"]
[null,null,null,null,null,null,null,null,null,null,"Mar"]
[null,null,null,null,null,null,null,null,null,null,"Apr"]
[null,null,null,null,null,null,null,null,null,null,"May"]
[null,null,null,null,null,null,null,null,null,null,"Jun"]
[null,null,null,null,null,null,null,null,null,null,"Jul"]
[null,null,null,null,null,null,null,null,null,null,"Aug"]
[null,null,null,null,null,null,null,null,null,null,"Sep"]
[null,null,null,null,null,null,null,null,null,null,"Oct"]
[null,null,null,null,null,null,null,null,null,null,"Nov"]
[null,null,null,null,null,null,null,null,null,null,"Dec"]
[null,null,null,null,null,null,null,null,null,null,"Annual",{"$f":"AVERAGE(L22:L33)","v":{"$error":"#DIV/0!"}},{"$f":"MAX(M22:M33)","v":0},{"$f":"AVERAGE(N22:N33)","v":{"$error":"#DIV/0!"}},{"$f":"MAX(O22:O33)","v":0}]
[]
[null,null,null,null,null,null,null,null,null,{"$f":"+A6","v":2020},"mg/Nm3","Monthly 1/2 hourly mean","Monthly 1/2 hourly maximum","Monthly daily mean","Monthly daily maximum"]
[null,null,null,null,null,null,null,null,null,"A3","Jan"]
[null,null,null,null,null,null,null,null,null,null,"Feb"]
[null,null,null,null,null,null,null,null,null,null,"Mar"]
[null,null,null,null,null,null,null,null,null,null,"Apr"]
[null,null,null,null,null,null,null,null,null,null,"May"]
[null,null,null,null,null,null,null,null,null,null,"Jun"]
[null,null,null,null,null,null,null,null,null,null,"Jul"]
[null,null,null,null,null,null,null,null,null,null,"Aug"]
[null,null,null,null,null,null,null,null,null,null,"Sep"]
[null,null,null,null,null,null,null,null,null,null,"Oct"]
[null,null,null,null,null,null,null,null,null,null,"Nov"]
["Comments :",null,null,null,null,null,null,null,null,null,"Dec"]
[null,null,null,null,null,null,null,null,null,null,"Annual",{"$f":"AVERAGE(L37:L48)","v":{"$error":"#DIV/0!"}},{"$f":"MAX(M37:M48)","v":0},{"$f":"AVERAGE(N37:N48)","v":{"$error":"#DIV/0!"}},{"$f":"MAX(O37:O48)","v":0}]
[]
[null,null,null,null,null,null,null,null,null,{"$f":"+A6","v":2020},"mg/Nm3","Monthly 1/2 hourly mean","Monthly 1/2 hourly maximum","Monthly daily mean","Monthly daily maximum"]
[null,null,null,null,null,null,null,null,null,"A4","Jan"]
[null,null,null,null,null,null,null,null,null,null,"Feb"]
[null,null,null,null,null,null,null,null,null,null,"Mar"]
[null,null,null,null,null,null,null,null,null,null,"Apr"]
[null,null,null,null,null,null,null,null,null,null,"May"]
[null,null,null,null,null,null,null,null,null,null,"Jun"]
[null,null,null,null,null,null,null,null,null,null,"Jul"]
[null,null,null,null,null,null,null,null,null,null,"Aug"]
[null,null,null,null,null,null,null,null,null,null,"Sep"]
[null,null,null,null,null,null,null,null,null,null,"Oct"]
[null,null,null,null,null,null,null,null,null,null,"Nov"]
[null,null,null,null,null,null,null,null,null,null,"Dec"]
[null,null,null,null,null,null,null,null,null,null,"Annual",{"$f":"AVERAGE(L52:L63)","v":{"$error":"#DIV/0!"}},{"$f":"MAX(M52:M63)","v":0},{"$f":"AVERAGE(N52:N63)","v":{"$error":"#DIV/0!"}},{"$f":"MAX(O52:O63)","v":0}]
[]
[null,null,null,null,null,null,null,null,null,{"$f":"+A6","v":2020},"mg/Nm3","Monthly 1/2 hourly mean","Monthly 1/2 hourly maximum","Monthly daily mean","Monthly daily maximum"]
[null,null,null,null,null,null,null,null,null,"A5","Jan"]
[null,null,null,null,null,null,null,null,null,null,"Feb"]
[null,null,null,null,null,null,null,null,null,null,"Mar"]
[null,null,null,null,null,null,null,null,null,null,"Apr"]
[null,null,null,null,null,null,null,null,null,null,"May"]
[null,null,null,null,null,null,null,null,null,null,"Jun"]
[null,null,null,null,null,null,null,null,null,null,"Jul"]
[null,null,null,null,null,null,null,null,null,null,"Aug"]
[null,null,null,null,null,null,null,null,null,null,"Sep"]
[null,null,null,null,null,null,null,null,null,null,"Oct"]
[null,null,null,null,null,null,null,null,null,null,"Nov"]
[null,null,null,null,null,null,null,null,null,null,"Dec"]
[null,null,null,null,null,null,null,null,null,null,"Annual",{"$f":"AVERAGE(L67:L78)","v":{"$error":"#DIV/0!"}},{"$f":"MAX(M67:M78)","v":0},{"$f":"AVERAGE(N67:N78)","v":{"$error":"#DIV/0!"}},{"$f":"MAX(O67:O78)","v":0}]

{"sheet":"NOx","index":16,"n_rows":79,"n_cols":17,"rows_kept":79,"cut":false,"hidden":false,"merged":[[3,16,7,18],[9,16,11,18],[12,16,15,18],[66,9,78,9],[4,1,4,3],[4,4,4,6],[4,9,4,14],[6,9,18,9],[21,9,33,9],[36,9,48,9],[47,0,47,6],[48,0,51,6],[51,9,63,9]]}
[{"$f":"+'Cover Page'!$B$29","v":"Annual Performance Report 2020"},null,null,null,{"$f":"+'Cover Page'!$B$33","v":"Newlincs Development IWMF"}]
[]
["Monitoring of Oxides of Nitrogen emissions",null,null,"Whole Installation",null,null,"See  Notes in Cell Q3",null,null,{"$f":"+A3","v":"Monitoring of Oxides of Nitrogen emissions"},null,null,null,"Per Combustion Line",null,null,"Notes:"]
[null,null,null,null,null,null,null,null,null,null,null,null,null,null,null,null,"User to add logic to complete Whole installation, Table A5:G18. From the data in Per Combustion Line, Table J6:O79, subject to No. of lines installed"]
["mg/Nm3","1/2 Hourly Reference Periods",null,null,"Daily Reference Periods"]
[{"$f":"+'Cover Page'!C39","v":2020},"1/2 hourly NOx ELV","Monthly 1/2 hourly mean","Highest 1/2 hourly maximum","Daily NOx ELV","Monthly daily mean","Highest daily maximum",null,null,{"$f":"+A6","v":2020},"mg/Nm3","Monthly 1/2 hourly mean","Monthly 1/2 hourly maximum","Monthly daily mean","Monthly daily maximum"]
["Jan",400,197.14,229.92,200,197.11,197.57,null,null,"A1","Jan",197.14,229.92,197.11,197.57]
["Feb",400,196.78,226.81,200,196.73,198.24,null,null,null,"Feb",196.78,226.81,196.73,198.24]
["Mar",400,192.5,227.5,200,192.5,197.5,null,null,null,"Mar",195.55,230.89,195.55,197.67,null,"Whole Installation table A5:G18:"]
["Apr",400,195.86,235.62,200,195.86,197.73,null,null,null,"Apr",195.86,235.62,195.86,197.73,null,"Mean: for 1/2 hourly and daily periods calculate mean of values across all operational combustion lines for the month"]
["May",400,195.8,229.5,200,197.73,195.8,null,null,null,"May",195.8,229.5,195.8,197.73]
["Jun",400,196.94,242.93,200,197.29,197.66,null,null,null,"Jun",196.94,242.93,197.29,197.66]
["Jul",400,197.27,239.34,200,197.35,197.61,null,null,null,"Jul",197.27,239.34,197.35,197.61,null,"Maximum: for 1/2 hourly and daily periods use the highest value across all operational combustion lines for the month"]
["Aug",400,197.42,235.42,200,197.4,198.41,null,null,null,"Aug",197.42,235.42,197.4,198.41]
["Sep",400,197.44,229.88,200,197.4,197.78,null,null,null,"Sep",197.44,229.88,197.4,197.78]
["Oct",400,196.89,238.06,200,196.99,197.66,null,null,null,"Oct",196.89,238.06,196.99,197.66]
["Nov",400,195.04,232.6,200,196.52,198.06,null,null,null,"Nov",195.04,232.6,196.52,198.06]
["Dec",400,197.12,229.27,200,197.12,197.9,null,null,null,"Dec",197.12,229.27,197.12,197.9]
[null,null,null,null,null,null,null,null,null,null,"Annual",{"$f":"AVERAGE(L7:L18)","v":196.60416666666666},{"$f":"MAX(M7:M18)","v":242.93},{"$f":"AVERAGE(N7:N18)","v":196.76000000000002},{"$f":"MAX(O7:O18)","v":198.41}]
[]
[null,null,null,null,null,null,null,null,null,{"$f":"+A6","v":2020},"mg/Nm3","Monthly 1/2 hourly mean","Monthly 1/2 hourly maximum","Monthly daily mean","Monthly daily maximum"]
[null,null,null,null,null,null,null,null,null,"A2","Jan"]
[null,null,null,null,null,null,null,null,null,null,"Feb"]
[null,null,null,null,null,null,null,null,null,null,"Mar"]
[null,null,null,null,null,null,null,null,null,null,"Apr"]
[null,null,null,null,null,null,null,null,null,null,"May"]
[null,null,null,null,null,null,null,null,null,null,"Jun"]
[null,null,null,null,null,null,null,null,null,null,"Jul"]
[null,null,null,null,null,null,null,null,null,null,"Aug"]
[null,null,null,null,null,null,null,null,null,null,"Sep"]
[null,null,null,null,null,null,null,null,null,null,"Oct"]
[null,null,null,null,null,null,null,null,null,null,"Nov"]
[null,null,null,null,null,null,null,null,null,null,"Dec"]
[null,null,null,null,null,null,null,null,null,null,"Annual",{"$f":"AVERAGE(L22:L33)","v":{"$error":"#DIV/0!"}},{"$f":"MAX(M22:M33)","v":0},{"$f":"AVERAGE(N22:N33)","v":{"$error":"#DIV/0!"}},{"$f":"MAX(O22:O33)","v":0}]
[]
[null,null,null,null,null,null,null,null,null,{"$f":"+A6","v":2020},"mg/Nm3","Monthly 1/2 hourly mean","Monthly 1/2 hourly maximum","Monthly daily mean","Monthly daily maximum"]
[null,null,null,null,null,null,null,null,null,"A3","Jan"]
[null,null,null,null,null,null,null,null,null,null,"Feb"]
[null,null,null,null,null,null,null,null,null,null,"Mar"]
[null,null,null,null,null,null,null,null,null,null,"Apr"]
[null,null,null,null,null,null,null,null,null,null,"May"]
[null,null,null,null,null,null,null,null,null,null,"Jun"]
[null,null,null,null,null,null,null,null,null,null,"Jul"]
[null,null,null,null,null,null,null,null,null,null,"Aug"]
[null,null,null,null,null,null,null,null,null,null,"Sep"]
[null,null,null,null,null,null,null,null,null,null,"Oct"]
[null,null,null,null,null,null,null,null,null,null,"Nov"]
["Comments :",null,null,null,null,null,null,null,null,null,"Dec"]
[null,null,null,null,null,null,null,null,null,null,"Annual",{"$f":"AVERAGE(L37:L48)","v":{"$error":"#DIV/0!"}},{"$f":"MAX(M37:M48)","v":0},{"$f":"AVERAGE(N37:N48)","v":{"$error":"#DIV/0!"}},{"$f":"MAX(O37:O48)","v":0}]
[]
[null,null,null,null,null,null,null,null,null,{"$f":"+A6","v":2020},"mg/Nm3","Monthly 1/2 hourly mean","Monthly 1/2 hourly maximum","Monthly daily mean","Monthly daily maximum"]
[null,null,null,null,null,null,null,null,null,"A4","Jan"]
[null,null,null,null,null,null,null,null,null,null,"Feb"]
[null,null,null,null,null,null,null,null,null,null,"Mar"]
[null,null,null,null,null,null,null,null,null,null,"Apr"]
[null,null,null,null,null,null,null,null,null,null,"May"]
[null,null,null,null,null,null,null,null,null,null,"Jun"]
[null,null,null,null,null,null,null,null,null,null,"Jul"]
[null,null,null,null,null,null,null,null,null,null,"Aug"]
[null,null,null,null,null,null,null,null,null,null,"Sep"]
[null,null,null,null,null,null,null,null,null,null,"Oct"]
[null,null,null,null,null,null,null,null,null,null,"Nov"]
[null,null,null,null,null,null,null,null,null,null,"Dec"]
[null,null,null,null,null,null,null,null,null,null,"Annual",{"$f":"AVERAGE(L52:L63)","v":{"$error":"#DIV/0!"}},{"$f":"MAX(M52:M63)","v":0},{"$f":"AVERAGE(N52:N63)","v":{"$error":"#DIV/0!"}},{"$f":"MAX(O52:O63)","v":0}]
[]
[null,null,null,null,null,null,null,null,null,{"$f":"+A6","v":2020},"mg/Nm3","Monthly 1/2 hourly mean","Monthly 1/2 hourly maximum","Monthly daily mean","Monthly daily maximum"]
[null,null,null,null,null,null,null,null,null,"A5","Jan"]
[null,null,null,null,null,null,null,null,null,null,"Feb"]
[null,null,null,null,null,null,null,null,null,null,"Mar"]
[null,null,null,null,null,null,null,null,null,null,"Apr"]
[null,null,null,null,null,null,null,null,null,null,"May"]
[null,null,null,null,null,null,null,null,null,null,"Jun"]
[null,null,null,null,null,null,null,null,null,null,"Jul"]
[null,null,null,null,null,null,null,null,null,null,"Aug"]
[null,null,null,null,null,null,null,null,null,null,"Sep"]
[null,null,null,null,null,null,null,null,null,null,"Oct"]
[null,null,null,null,null,null,null,null,null,null,"Nov"]
[null,null,null,null,null,null,null,null,null,null,"Dec"]
[null,null,null,null,null,null,null,null,null,null,"Annual",{"$f":"AVERAGE(L67:L78)","v":{"$error":"#DIV/0!"}},{"$f":"MAX(M67:M78)","v":0},{"$f":"AVERAGE(N67:N78)","v":{"$error":"#DIV/0!"}},{"$f":"MAX(O67:O78)","v":0}]

{"sheet":"TOC","index":17,"n_rows":79,"n_cols":17,"rows_kept":79,"cut":false,"hidden":false,"merged":[[3,16,7,18],[9,16,11,18],[12,16,15,18],[66,9,78,9],[4,1,4,3],[4,4,4,6],[4,9,4,14],[6,9,18,9],[21,9,33,9],[36,9,48,9],[47,0,47,6],[48,0,51,6],[51,9,63,9]]}
[{"$f":"+'Cover Page'!$B$29","v":"Annual Performance Report 2020"},null,null,null,{"$f":"+'Cover Page'!$B$33","v":"Newlincs Development IWMF"}]
[]
["Monitoring of Total organic carbon emissions",null,null,"Whole Installation",null,null,"See  Notes in Cell Q3",null,null,{"$f":"+A3","v":"Monitoring of Total organic carbon emissions"},null,null,null,"Per Combustion Line",null,null,"Notes:"]
[null,null,null,null,null,null,null,null,null,null,null,null,null,null,null,null,"User to add logic to complete Whole installation, Table A5:G18. From the data in Per Combustion Line, Table J6:O79, subject to No. of lines installed"]
["mg/Nm3","1/2 Hourly Reference Periods",null,null,"Daily Reference Periods"]
[{"$f":"+'Cover Page'!C39","v":2020},"1/2 hourly TOC ELV","Monthly 1/2 hourly mean","Highest 1/2 hourly maximum","Daily TOC ELV","Monthly daily mean","Highest daily maximum",null,null,{"$f":"+A6","v":2020},"mg/Nm3","Monthly 1/2 hourly mean","Monthly 1/2 hourly maximum","Monthly daily mean","Monthly daily maximum"]
["Jan",20,0.19,8.1300000000000008,10,0.19,1.08,null,null,"A1","Jan",0.19,8.1300000000000008,0.19,1.08]
["Feb",20,0.27,4.91,10,0.27,1.01,null,null,null,"Feb",0.27,4.91,0.27,1.01]
["Mar",20,7.0000000000000007E-2,1.54,10,7.0000000000000007E-2,0.39,null,null,null,"Mar",7.0000000000000007E-2,1.54,7.0000000000000007E-2,0.39,null,"Whole Installation table A5:G18:"]
["Apr",20,0.06,4.2699999999999996,10,0.06,0.66,null,null,null,"Apr",0.06,4.2699999999999996,0.06,0.66,null,"Mean: for 1/2 hourly and daily periods calculate mean of values across all operational combustion lines for the month"]
["May",20,0.05,9.7899999999999991,10,0.05,0.42,null,null,null,"May",0.05,9.7899999999999991,0.05,0.42]
["Jun",20,1.38,4.96,10,1.44,1.68,null,null,null,"Jun",1.38,4.96,1.44,1.68]
["Jul",20,1.22,16.64,10,1.1599999999999999,2.3199999999999998,null,null,null,"Jul",1.22,16.64,1.1599999999999999,2.3199999999999998,null,"Maximum: for 1/2 hourly and daily periods use the highest value across all operational combustion lines for the month"]
["Aug",20,0.51,7.78,10,0.5,0.93,null,null,null,"Aug",0.51,7.78,0.5,0.93]
["Sep",20,0.23,5.75,10,0.23,0.84,null,null,null,"Sep",0.23,5.75,0.23,0.84]
["Oct",20,0.12,3.49,10,0.13,0.31,null,null,null,"Oct",0.12,3.49,0.13,0.31]
["Nov",20,0.19,4.7699999999999996,10,0.19,0.63,null,null,null,"Nov",0.19,4.7699999999999996,0.19,0.63]
["Dec",20,0.17,2.96,10,0.17,0.98,null,null,null,"Dec",0.17,2.96,0.17,0.98]
[null,null,null,null,null,null,null,null,null,null,"Annual",{"$f":"AVERAGE(L7:L18)","v":0.37166666666666665},{"$f":"MAX(M7:M18)","v":16.64},{"$f":"AVERAGE(N7:N18)","v":0.37166666666666676},{"$f":"MAX(O7:O18)","v":2.3199999999999998}]
[]
[null,null,null,null,null,null,null,null,null,{"$f":"+A6","v":2020},"mg/Nm3","Monthly 1/2 hourly mean","Monthly 1/2 hourly maximum","Monthly daily mean","Monthly daily maximum"]
[null,null,null,null,null,null,null,null,null,"A2","Jan"]
[null,null,null,null,null,null,null,null,null,null,"Feb"]
[null,null,null,null,null,null,null,null,null,null,"Mar"]
[null,null,null,null,null,null,null,null,null,null,"Apr"]
[null,null,null,null,null,null,null,null,null,null,"May"]
[null,null,null,null,null,null,null,null,null,null,"Jun"]
[null,null,null,null,null,null,null,null,null,null,"Jul"]
[null,null,null,null,null,null,null,null,null,null,"Aug"]
[null,null,null,null,null,null,null,null,null,null,"Sep"]
[null,null,null,null,null,null,null,null,null,null,"Oct"]
[null,null,null,null,null,null,null,null,null,null,"Nov"]
[null,null,null,null,null,null,null,null,null,null,"Dec"]
[null,null,null,null,null,null,null,null,null,null,"Annual",{"$f":"AVERAGE(L22:L33)","v":{"$error":"#DIV/0!"}},{"$f":"MAX(M22:M33)","v":0},{"$f":"AVERAGE(N22:N33)","v":{"$error":"#DIV/0!"}},{"$f":"MAX(O22:O33)","v":0}]
[]
[null,null,null,null,null,null,null,null,null,{"$f":"+A6","v":2020},"mg/Nm3","Monthly 1/2 hourly mean","Monthly 1/2 hourly maximum","Monthly daily mean","Monthly daily maximum"]
[null,null,null,null,null,null,null,null,null,"A3","Jan"]
[null,null,null,null,null,null,null,null,null,null,"Feb"]
[null,null,null,null,null,null,null,null,null,null,"Mar"]
[null,null,null,null,null,null,null,null,null,null,"Apr"]
[null,null,null,null,null,null,null,null,null,null,"May"]
[null,null,null,null,null,null,null,null,null,null,"Jun"]
[null,null,null,null,null,null,null,null,null,null,"Jul"]
[null,null,null,null,null,null,null,null,null,null,"Aug"]
[null,null,null,null,null,null,null,null,null,null,"Sep"]
[null,null,null,null,null,null,null,null,null,null,"Oct"]
[null,null,null,null,null,null,null,null,null,null,"Nov"]
["Comments :",null,null,null,null,null,null,null,null,null,"Dec"]
[null,null,null,null,null,null,null,null,null,null,"Annual",{"$f":"AVERAGE(L37:L48)","v":{"$error":"#DIV/0!"}},{"$f":"MAX(M37:M48)","v":0},{"$f":"AVERAGE(N37:N48)","v":{"$error":"#DIV/0!"}},{"$f":"MAX(O37:O48)","v":0}]
[]
[null,null,null,null,null,null,null,null,null,{"$f":"+A6","v":2020},"mg/Nm3","Monthly 1/2 hourly mean","Monthly 1/2 hourly maximum","Monthly daily mean","Monthly daily maximum"]
[null,null,null,null,null,null,null,null,null,"A4","Jan"]
[null,null,null,null,null,null,null,null,null,null,"Feb"]
[null,null,null,null,null,null,null,null,null,null,"Mar"]
[null,null,null,null,null,null,null,null,null,null,"Apr"]
[null,null,null,null,null,null,null,null,null,null,"May"]
[null,null,null,null,null,null,null,null,null,null,"Jun"]
[null,null,null,null,null,null,null,null,null,null,"Jul"]
[null,null,null,null,null,null,null,null,null,null,"Aug"]
[null,null,null,null,null,null,null,null,null,null,"Sep"]
[null,null,null,null,null,null,null,null,null,null,"Oct"]
[null,null,null,null,null,null,null,null,null,null,"Nov"]
[null,null,null,null,null,null,null,null,null,null,"Dec"]
[null,null,null,null,null,null,null,null,null,null,"Annual",{"$f":"AVERAGE(L52:L63)","v":{"$error":"#DIV/0!"}},{"$f":"MAX(M52:M63)","v":0},{"$f":"AVERAGE(N52:N63)","v":{"$error":"#DIV/0!"}},{"$f":"MAX(O52:O63)","v":0}]
[]
[null,null,null,null,null,null,null,null,null,{"$f":"+A6","v":2020},"mg/Nm3","Monthly 1/2 hourly mean","Monthly 1/2 hourly maximum","Monthly daily mean","Monthly daily maximum"]
[null,null,null,null,null,null,null,null,null,"A5","Jan"]
[null,null,null,null,null,null,null,null,null,null,"Feb"]
[null,null,null,null,null,null,null,null,null,null,"Mar"]
[null,null,null,null,null,null,null,null,null,null,"Apr"]
[null,null,null,null,null,null,null,null,null,null,"May"]
[null,null,null,null,null,null,null,null,null,null,"Jun"]
[null,null,null,null,null,null,null,null,null,null,"Jul"]
[null,null,null,null,null,null,null,null,null,null,"Aug"]
[null,null,null,null,null,null,null,null,null,null,"Sep"]
[null,null,null,null,null,null,null,null,null,null,"Oct"]
[null,null,null,null,null,null,null,null,null,null,"Nov"]
[null,null,null,null,null,null,null,null,null,null,"Dec"]
[null,null,null,null,null,null,null,null,null,null,"Annual",{"$f":"AVERAGE(L67:L78)","v":{"$error":"#DIV/0!"}},{"$f":"MAX(M67:M78)","v":0},{"$f":"AVERAGE(N67:N78)","v":{"$error":"#DIV/0!"}},{"$f":"MAX(O67:O78)","v":0}]

{"sheet":"Particulates","index":18,"n_rows":79,"n_cols":17,"rows_kept":79,"cut":false,"hidden":false,"merged":[[3,16,7,18],[9,16,11,18],[12,16,15,18],[66,9,78,9],[4,1,4,3],[4,4,4,6],[4,9,4,14],[6,9,18,9],[21,9,33,9],[36,9,48,9],[47,0,47,6],[48,0,51,6],[51,9,63,9]]}
[{"$f":"+'Cover Page'!$B$29","v":"Annual Performance Report 2020"},null,null,null,{"$f":"+'Cover Page'!$B$33","v":"Newlincs Development IWMF"}]
[]
["Monitoring of Particulate matter emissions",null,null,"Whole Installation",null,null,"See  Notes in Cell Q3",null,null,{"$f":"+A3","v":"Monitoring of Particulate matter emissions"},null,null,null,"Per Combustion Line",null,null,"Notes:"]
[null,null,null,null,null,null,null,null,null,null,null,null,null,null,null,null,"User to add logic to complete Whole installation, Table A5:G18. From the data in Per Combustion Line, Table J6:O79, subject to No. of lines installed"]
["mg/Nm3","1/2 Hourly Reference Periods",null,null,"Daily Reference Periods"]
[{"$f":"+'Cover Page'!C39","v":2020},"1/2 hourly PM ELV","Monthly 1/2 hourly mean","Highest 1/2 hourly maximum","Daily PM ELV","Monthly daily mean","Highest daily maximum",null,null,{"$f":"+A6","v":2020},"mg/Nm3","Monthly 1/2 hourly mean","Monthly 1/2 hourly maximum","Monthly daily mean","Monthly daily maximum"]
["Jan",30,0.14000000000000001,1.02,10,0.14000000000000001,0.17,null,null,"A1","Jan",0.14000000000000001,1.02,0.14000000000000001,0.17]
["Feb",30,0.17,0.56999999999999995,10,0.16,0.22,null,null,null,"Feb",0.17,0.56999999999999995,0.16,0.22]
["Mar",30,0.19,0.35,10,0.19,0.24,null,null,null,"Mar",0.19,0.35,0.19,0.24,null,"Whole Installation table A5:G18:"]
["Apr",30,0.21,0.43,10,0.21,0.26,null,null,null,"Apr",0.21,0.43,0.21,0.26,null,"Mean: for 1/2 hourly and daily periods calculate mean of values across all operational combustion lines for the month"]
["May",30,0.15,0.55000000000000004,10,0.15,0.2,null,null,null,"May",0.15,0.55000000000000004,0.15,0.2]
["Jun",30,0.13,0.28000000000000003,10,0.13,0.17,null,null,null,"Jun",0.13,0.28000000000000003,0.13,0.17]
["Jul",30,0.11,0.31,10,0.11,0.14000000000000001,null,null,null,"Jul",0.11,0.31,0.11,0.14000000000000001,null,"Maximum: for 1/2 hourly and daily periods use the highest value across all operational combustion lines for the month"]
["Aug",30,0.11,0.38,10,0.11,0.17,null,null,null,"Aug",0.11,0.38,0.11,0.17]
["Sep",30,0.11,0.35,10,0.11,0.18,null,null,null,"Sep",0.11,0.35,0.11,0.18]
["Oct",30,0.12,0.39,10,0.12,0.17,null,null,null,"Oct",0.12,0.39,0.12,0.17]
["Nov",30,0.19,2.37,10,0.18,0.28999999999999998,null,null,null,"Nov",0.19,2.37,0.18,0.28999999999999998]
["Dec",30,0.28000000000000003,2.0299999999999998,10,0.28000000000000003,0.41,null,null,null,"Dec",0.28000000000000003,2.0299999999999998,0.28000000000000003,0.41]
[null,null,null,null,null,null,null,null,null,null,"Annual",{"$f":"AVERAGE(L7:L18)","v":0.15916666666666671},{"$f":"MAX(M7:M18)","v":2.37},{"$f":"AVERAGE(N7:N18)","v":0.1575},{"$f":"MAX(O7:O18)","v":0.41}]
[]
[null,null,null,null,null,null,null,null,null,{"$f":"+A6","v":2020},"mg/Nm3","Monthly 1/2 hourly mean","Monthly 1/2 hourly maximum","Monthly daily mean","Monthly daily maximum"]
[null,null,null,null,null,null,null,null,null,"A2","Jan"]
[null,null,null,null,null,null,null,null,null,null,"Feb"]
[null,null,null,null,null,null,null,null,null,null,"Mar"]
[null,null,null,null,null,null,null,null,null,null,"Apr"]
[null,null,null,null,null,null,null,null,null,null,"May"]
[null,null,null,null,null,null,null,null,null,null,"Jun"]
[null,null,null,null,null,null,null,null,null,null,"Jul"]
[null,null,null,null,null,null,null,null,null,null,"Aug"]
[null,null,null,null,null,null,null,null,null,null,"Sep"]
[null,null,null,null,null,null,null,null,null,null,"Oct"]
[null,null,null,null,null,null,null,null,null,null,"Nov"]
[null,null,null,null,null,null,null,null,null,null,"Dec"]
[null,null,null,null,null,null,null,null,null,null,"Annual",{"$f":"AVERAGE(L22:L33)","v":{"$error":"#DIV/0!"}},{"$f":"MAX(M22:M33)","v":0},{"$f":"AVERAGE(N22:N33)","v":{"$error":"#DIV/0!"}},{"$f":"MAX(O22:O33)","v":0}]
[]
[null,null,null,null,null,null,null,null,null,{"$f":"+A6","v":2020},"mg/Nm3","Monthly 1/2 hourly mean","Monthly 1/2 hourly maximum","Monthly daily mean","Monthly daily maximum"]
[null,null,null,null,null,null,null,null,null,"A3","Jan"]
[null,null,null,null,null,null,null,null,null,null,"Feb"]
[null,null,null,null,null,null,null,null,null,null,"Mar"]
[null,null,null,null,null,null,null,null,null,null,"Apr"]
[null,null,null,null,null,null,null,null,null,null,"May"]
[null,null,null,null,null,null,null,null,null,null,"Jun"]
[null,null,null,null,null,null,null,null,null,null,"Jul"]
[null,null,null,null,null,null,null,null,null,null,"Aug"]
[null,null,null,null,null,null,null,null,null,null,"Sep"]
[null,null,null,null,null,null,null,null,null,null,"Oct"]
[null,null,null,null,null,null,null,null,null,null,"Nov"]
["Comments :",null,null,null,null,null,null,null,null,null,"Dec"]
[null,null,null,null,null,null,null,null,null,null,"Annual",{"$f":"AVERAGE(L37:L48)","v":{"$error":"#DIV/0!"}},{"$f":"MAX(M37:M48)","v":0},{"$f":"AVERAGE(N37:N48)","v":{"$error":"#DIV/0!"}},{"$f":"MAX(O37:O48)","v":0}]
[]
[null,null,null,null,null,null,null,null,null,{"$f":"+A6","v":2020},"mg/Nm3","Monthly 1/2 hourly mean","Monthly 1/2 hourly maximum","Monthly daily mean","Monthly daily maximum"]
[null,null,null,null,null,null,null,null,null,"A4","Jan"]
[null,null,null,null,null,null,null,null,null,null,"Feb"]
[null,null,null,null,null,null,null,null,null,null,"Mar"]
[null,null,null,null,null,null,null,null,null,null,"Apr"]
[null,null,null,null,null,null,null,null,null,null,"May"]
[null,null,null,null,null,null,null,null,null,null,"Jun"]
[null,null,null,null,null,null,null,null,null,null,"Jul"]
[null,null,null,null,null,null,null,null,null,null,"Aug"]
[null,null,null,null,null,null,null,null,null,null,"Sep"]
[null,null,null,null,null,null,null,null,null,null,"Oct"]
[null,null,null,null,null,null,null,null,null,null,"Nov"]
[null,null,null,null,null,null,null,null,null,null,"Dec"]
[null,null,null,null,null,null,null,null,null,null,"Annual",{"$f":"AVERAGE(L52:L63)","v":{"$error":"#DIV/0!"}},{"$f":"MAX(M52:M63)","v":0},{"$f":"AVERAGE(N52:N63)","v":{"$error":"#DIV/0!"}},{"$f":"MAX(O52:O63)","v":0}]
[]
[null,null,null,null,null,null,null,null,null,{"$f":"+A6","v":2020},"mg/Nm3","Monthly 1/2 hourly mean","Monthly 1/2 hourly maximum","Monthly daily mean","Monthly daily maximum"]
[null,null,null,null,null,null,null,null,null,"A5","Jan"]
[null,null,null,null,null,null,null,null,null,null,"Feb"]
[null,null,null,null,null,null,null,null,null,null,"Mar"]
[null,null,null,null,null,null,null,null,null,null,"Apr"]
[null,null,null,null,null,null,null,null,null,null,"May"]
[null,null,null,null,null,null,null,null,null,null,"Jun"]
[null,null,null,null,null,null,null,null,null,null,"Jul"]
[null,null,null,null,null,null,null,null,null,null,"Aug"]
[null,null,null,null,null,null,null,null,null,null,"Sep"]
[null,null,null,null,null,null,null,null,null,null,"Oct"]
[null,null,null,null,null,null,null,null,null,null,"Nov"]
[null,null,null,null,null,null,null,null,null,null,"Dec"]
[null,null,null,null,null,null,null,null,null,null,"Annual",{"$f":"AVERAGE(L67:L78)","v":{"$error":"#DIV/0!"}},{"$f":"MAX(M67:M78)","v":0},{"$f":"AVERAGE(N67:N78)","v":{"$error":"#DIV/0!"}},{"$f":"MAX(O67:O78)","v":0}]

{"sheet":"CO 0.5hourly","index":19,"n_rows":79,"n_cols":17,"rows_kept":79,"cut":false,"hidden":false,"merged":[[3,16,7,18],[9,16,11,18],[12,16,15,18],[66,9,78,9],[4,1,4,3],[4,4,4,6],[4,9,4,14],[6,9,18,9],[21,9,33,9],[36,9,48,9],[47,0,47,6],[48,0,51,6],[51,9,63,9]]}
[{"$f":"+'Cover Page'!$B$29","v":"Annual Performance Report 2020"},null,null,null,{"$f":"+'Cover Page'!$B$33","v":"Newlincs Development IWMF"}]
[]
["Monitoring of Carbon Monoxide (half hourly)",null,null,"Whole Installation",null,null,"See  Notes in Cell Q3",null,null,{"$f":"+A3","v":"Monitoring of Carbon Monoxide (half hourly)"},null,null,null,"Per Combustion Line",null,null,"Notes:"]
[null,null,null,null,null,null,null,null,null,null,null,null,null,null,null,null,"User to add logic to complete Whole installation, Table A5:G18. From the data in Per Combustion Line, Table J6:O79, subject to No. of lines installed"]
["mg/Nm3","1/2 Hourly Reference Periods",null,null,"Daily Reference Periods"]
[{"$f":"+'Cover Page'!C39","v":2020},"1/2 hourly CO ELV","Monthly 1/2 hourly mean","Highest 1/2 hourly maximum","Daily CO ELV","Monthly daily mean","Highest daily maximum",null,null,{"$f":"+A6","v":2020},"mg/Nm3","Monthly 1/2 hourly mean","Monthly 1/2 hourly maximum","Monthly daily mean","Monthly daily maximum"]
["Jan",100,3.6,66.27,50,3.52,4.7300000000000004,null,null,"A1","Jan",3.6,66.27,3.52,4.7300000000000004]
["Feb",{"$f":"+B7","v":100},4.1500000000000004,57.84,{"$f":"+E7","v":50},4.04,5.61,null,null,null,"Feb",4.1500000000000004,57.84,4.04,5.61]
["Mar",{"$f":"+B8","v":100},3.68,19.309999999999999,{"$f":"+E8","v":50},3.68,4.28,null,null,null,"Mar",3.68,19.309999999999999,3.68,4.28,null,"Whole Installation table A5:G18:"]
["Apr",100,3.75,87.54,50,3.75,5.66,null,null,null,"Apr",3.75,87.54,3.75,5.66,null,"Mean: for 1/2 hourly and daily periods calculate mean of values across all operational combustion lines for the month"]
["May",100,3.85,23.09,50,3.85,4.4400000000000004,null,null,null,"May",3.85,23.09,3.85,4.4400000000000004]
["Jun",100,3.63,22.32,50,3.6,4.28,null,null,null,"Jun",3.63,22.32,3.6,4.28]
["Jul",100,3.79,27.99,50,3.62,4.8099999999999996,null,null,null,"Jul",3.79,27.99,3.62,4.8099999999999996,null,"Maximum: for 1/2 hourly and daily periods use the highest value across all operational combustion lines for the month"]
["Aug",100,3.68,41.69,50,3.66,5.24,null,null,null,"Aug",3.68,41.69,3.66,5.24]
["Sep",100,3.1,22.03,50,3.09,4.26,null,null,null,"Sep",3.1,22.03,3.09,4.26]
["Oct",100,3.26,36.03,50,3.23,4.16,null,null,null,"Oct",3.26,36.03,3.23,4.16]
["Nov",100,3.74,22.22,50,3.64,4.5199999999999996,null,null,null,"Nov",3.74,22.22,3.64,4.5199999999999996]
["Dec",100,3.73,59.22,50,3.73,5.62,null,null,null,"Dec",3.73,59.22,3.73,5.62]
[null,null,null,null,null,null,null,null,null,null,"Annual",{"$f":"AVERAGE(L7:L18)","v":3.6633333333333327},{"$f":"MAX(M7:M18)","v":87.54},{"$f":"AVERAGE(N7:N18)","v":3.6174999999999997},{"$f":"MAX(O7:O18)","v":5.66}]
[]
[null,null,null,null,null,null,null,null,null,{"$f":"+A6","v":2020},"mg/Nm3","Monthly 1/2 hourly mean","Monthly 1/2 hourly maximum","Monthly daily mean","Monthly daily maximum"]
[null,null,null,null,null,null,null,null,null,"A2","Jan"]
[null,null,null,null,null,null,null,null,null,null,"Feb"]
[null,null,null,null,null,null,null,null,null,null,"Mar"]
[null,null,null,null,null,null,null,null,null,null,"Apr"]
[null,null,null,null,null,null,null,null,null,null,"May"]
[null,null,null,null,null,null,null,null,null,null,"Jun"]
[null,null,null,null,null,null,null,null,null,null,"Jul"]
[null,null,null,null,null,null,null,null,null,null,"Aug"]
[null,null,null,null,null,null,null,null,null,null,"Sep"]
[null,null,null,null,null,null,null,null,null,null,"Oct"]
[null,null,null,null,null,null,null,null,null,null,"Nov"]
[null,null,null,null,null,null,null,null,null,null,"Dec"]
[null,null,null,null,null,null,null,null,null,null,"Annual",{"$f":"AVERAGE(L22:L33)","v":{"$error":"#DIV/0!"}},{"$f":"MAX(M22:M33)","v":0},{"$f":"AVERAGE(N22:N33)","v":{"$error":"#DIV/0!"}},{"$f":"MAX(O22:O33)","v":0}]
[]
[null,null,null,null,null,null,null,null,null,{"$f":"+A6","v":2020},"mg/Nm3","Monthly 1/2 hourly mean","Monthly 1/2 hourly maximum","Monthly daily mean","Monthly daily maximum"]
[null,null,null,null,null,null,null,null,null,"A3","Jan"]
[null,null,null,null,null,null,null,null,null,null,"Feb"]
[null,null,null,null,null,null,null,null,null,null,"Mar"]
[null,null,null,null,null,null,null,null,null,null,"Apr"]
[null,null,null,null,null,null,null,null,null,null,"May"]
[null,null,null,null,null,null,null,null,null,null,"Jun"]
[null,null,null,null,null,null,null,null,null,null,"Jul"]
[null,null,null,null,null,null,null,null,null,null,"Aug"]
[null,null,null,null,null,null,null,null,null,null,"Sep"]
[null,null,null,null,null,null,null,null,null,null,"Oct"]
[null,null,null,null,null,null,null,null,null,null,"Nov"]
["Comments :",null,null,null,null,null,null,null,null,null,"Dec"]
[null,null,null,null,null,null,null,null,null,null,"Annual",{"$f":"AVERAGE(L37:L48)","v":{"$error":"#DIV/0!"}},{"$f":"MAX(M37:M48)","v":0},{"$f":"AVERAGE(N37:N48)","v":{"$error":"#DIV/0!"}},{"$f":"MAX(O37:O48)","v":0}]
[]
[null,null,null,null,null,null,null,null,null,{"$f":"+A6","v":2020},"mg/Nm3","Monthly 1/2 hourly mean","Monthly 1/2 hourly maximum","Monthly daily mean","Monthly daily maximum"]
[null,null,null,null,null,null,null,null,null,"A4","Jan"]
[null,null,null,null,null,null,null,null,null,null,"Feb"]
[null,null,null,null,null,null,null,null,null,null,"Mar"]
[null,null,null,null,null,null,null,null,null,null,"Apr"]
[null,null,null,null,null,null,null,null,null,null,"May"]
[null,null,null,null,null,null,null,null,null,null,"Jun"]
[null,null,null,null,null,null,null,null,null,null,"Jul"]
[null,null,null,null,null,null,null,null,null,null,"Aug"]
[null,null,null,null,null,null,null,null,null,null,"Sep"]
[null,null,null,null,null,null,null,null,null,null,"Oct"]
[null,null,null,null,null,null,null,null,null,null,"Nov"]
[null,null,null,null,null,null,null,null,null,null,"Dec"]
[null,null,null,null,null,null,null,null,null,null,"Annual",{"$f":"AVERAGE(L52:L63)","v":{"$error":"#DIV/0!"}},{"$f":"MAX(M52:M63)","v":0},{"$f":"AVERAGE(N52:N63)","v":{"$error":"#DIV/0!"}},{"$f":"MAX(O52:O63)","v":0}]
[]
[null,null,null,null,null,null,null,null,null,{"$f":"+A6","v":2020},"mg/Nm3","Monthly 1/2 hourly mean","Monthly 1/2 hourly maximum","Monthly daily mean","Monthly daily maximum"]
[null,null,null,null,null,null,null,null,null,"A5","Jan"]
[null,null,null,null,null,null,null,null,null,null,"Feb"]
[null,null,null,null,null,null,null,null,null,null,"Mar"]
[null,null,null,null,null,null,null,null,null,null,"Apr"]
[null,null,null,null,null,null,null,null,null,null,"May"]
[null,null,null,null,null,null,null,null,null,null,"Jun"]
[null,null,null,null,null,null,null,null,null,null,"Jul"]
[null,null,null,null,null,null,null,null,null,null,"Aug"]
[null,null,null,null,null,null,null,null,null,null,"Sep"]
[null,null,null,null,null,null,null,null,null,null,"Oct"]
[null,null,null,null,null,null,null,null,null,null,"Nov"]
[null,null,null,null,null,null,null,null,null,null,"Dec"]
[null,null,null,null,null,null,null,null,null,null,"Annual",{"$f":"AVERAGE(L67:L78)","v":{"$error":"#DIV/0!"}},{"$f":"MAX(M67:M78)","v":0},{"$f":"AVERAGE(N67:N78)","v":{"$error":"#DIV/0!"}},{"$f":"MAX(O67:O78)","v":0}]

{"sheet":"NH3","index":20,"n_rows":79,"n_cols":17,"rows_kept":79,"cut":false,"hidden":false,"merged":[[3,16,7,18],[9,16,11,18],[12,16,15,18],[66,9,78,9],[4,1,4,3],[4,4,4,6],[4,9,4,14],[6,9,18,9],[21,9,33,9],[36,9,48,9],[47,0,47,6],[48,0,51,6],[51,9,63,9]]}
[{"$f":"+'Cover Page'!$B$29","v":"Annual Performance Report 2020"},null,null,null,{"$f":"+'Cover Page'!$B$33","v":"Newlincs Development IWMF"}]
[]
["Monitoring of Ammonia emissions ",null,null,"Whole Installation",null,null,"See  Notes in Cell Q3",null,null,{"$f":"+A3","v":"Monitoring of Ammonia emissions "},null,null,null,"Per Combustion Line",null,null,"Notes:"]
[null,null,null,null,null,null,null,null,null,null,null,null,null,null,null,null,"User to add logic to complete Whole installation, Table A5:G18. From the data in Per Combustion Line, Table J6:O79, subject to No. of lines installed"]
["mg/Nm3","1/2 Hourly Reference Periods",null,null,"Daily Reference Periods"]
[{"$f":"+'Cover Page'!C39","v":2020},"1/2 hourly NH3 ELV","Monthly 1/2 hourly mean","Highest 1/2 hourly maximum","Daily NH3 ELV","Monthly daily mean","Highest daily maximum",null,null,{"$f":"+A6","v":2020},"mg/Nm3","Monthly 1/2 hourly mean","Monthly 1/2 hourly maximum","Monthly daily mean","Monthly daily maximum"]
["Jan",0,1,1.17,0,0.01,0.04,null,null,"A1","Jan",0.01,1.17,0.01,0.04]
["Feb",{"$f":"+B7","v":0},0.01,0.53,{"$f":"+E7","v":0},0.01,0.05,null,null,null,"Feb",0.01,0.53,0.01,0.05]
["Mar",{"$f":"+B8","v":0},0.01,1.48,{"$f":"+E8","v":0},0.01,0.04,null,null,null,"Mar",0,0.28999999999999998,0,0.03,null,"Whole Installation table A5:G18:"]
["Apr",0,0.01,2.66,0,0.01,7.0000000000000007E-2,null,null,null,"Apr",0.01,2.66,0.01,7.0000000000000007E-2,null,"Mean: for 1/2 hourly and daily periods calculate mean of values across all operational combustion lines for the month"]
["May",0,0.01,2.65,0,0.01,0.09,null,null,null,"May",0.01,2.65,0.01,0.09]
["Jun",0,0.11,4.71,0,0.12,0.37,null,null,null,"Jun",0.11,4.71,0.12,0.37]
["Jul",0,0.15,5.7,0,0.13,0.68,null,null,null,"Jul",0.15,5.7,0.13,0.68,null,"Maximum: for 1/2 hourly and daily periods use the highest value across all operational combustion lines for the month"]
["Aug",0,0.08,2.2999999999999998,0,7.0000000000000007E-2,0.69,null,null,null,"Aug",0.08,2.2999999999999998,7.0000000000000007E-2,0.69]
["Sep",0,0,0.18,0,0,0.02,null,null,null,"Sep",0,0.18,0,0.02]
["Oct",0,0.01,0.64,0,0.01,0.02,null,null,null,"Oct",0.01,0.64,0.01,0.02]
["Nov",0,0,0.46,0,0,0.03,null,null,null,"Nov",0,0.46,0,0.03]
["Dec",0,0.01,0.57999999999999996,0,0.01,0.16,null,null,null,"Dec",0.01,0.57999999999999996,0.01,0.16]
[null,null,null,null,null,null,null,null,null,null,"Annual",{"$f":"AVERAGE(L7:L18)","v":3.3333333333333333E-2},{"$f":"MAX(M7:M18)","v":5.7},{"$f":"AVERAGE(N7:N18)","v":3.1666666666666669E-2},{"$f":"MAX(O7:O18)","v":0.69}]
[]
[null,null,null,null,null,null,null,null,null,{"$f":"+A6","v":2020},"mg/Nm3","Monthly 1/2 hourly mean","Monthly 1/2 hourly maximum","Monthly daily mean","Monthly daily maximum"]
[null,null,null,null,null,null,null,null,null,"A2","Jan"]
[null,null,null,null,null,null,null,null,null,null,"Feb"]
[null,null,null,null,null,null,null,null,null,null,"Mar"]
[null,null,null,null,null,null,null,null,null,null,"Apr"]
[null,null,null,null,null,null,null,null,null,null,"May"]
[null,null,null,null,null,null,null,null,null,null,"Jun"]
[null,null,null,null,null,null,null,null,null,null,"Jul"]
[null,null,null,null,null,null,null,null,null,null,"Aug"]
[null,null,null,null,null,null,null,null,null,null,"Sep"]
[null,null,null,null,null,null,null,null,null,null,"Oct"]
[null,null,null,null,null,null,null,null,null,null,"Nov"]
[null,null,null,null,null,null,null,null,null,null,"Dec"]
[null,null,null,null,null,null,null,null,null,null,"Annual",{"$f":"AVERAGE(L22:L33)","v":{"$error":"#DIV/0!"}},{"$f":"MAX(M22:M33)","v":0},{"$f":"AVERAGE(N22:N33)","v":{"$error":"#DIV/0!"}},{"$f":"MAX(O22:O33)","v":0}]
[]
[null,null,null,null,null,null,null,null,null,{"$f":"+A6","v":2020},"mg/Nm3","Monthly 1/2 hourly mean","Monthly 1/2 hourly maximum","Monthly daily mean","Monthly daily maximum"]
[null,null,null,null,null,null,null,null,null,"A3","Jan"]
[null,null,null,null,null,null,null,null,null,null,"Feb"]
[null,null,null,null,null,null,null,null,null,null,"Mar"]
[null,null,null,null,null,null,null,null,null,null,"Apr"]
[null,null,null,null,null,null,null,null,null,null,"May"]
[null,null,null,null,null,null,null,null,null,null,"Jun"]
[null,null,null,null,null,null,null,null,null,null,"Jul"]
[null,null,null,null,null,null,null,null,null,null,"Aug"]
[null,null,null,null,null,null,null,null,null,null,"Sep"]
[null,null,null,null,null,null,null,null,null,null,"Oct"]
[null,null,null,null,null,null,null,null,null,null,"Nov"]
["Comments :",null,null,null,null,null,null,null,null,null,"Dec"]
["An indicated ELV value of zero in the table above means that no ammonia limit is set in the permit.  ",null,null,null,null,null,null,null,null,null,"Annual",{"$f":"AVERAGE(L37:L48)","v":{"$error":"#DIV/0!"}},{"$f":"MAX(M37:M48)","v":0},{"$f":"AVERAGE(N37:N48)","v":{"$error":"#DIV/0!"}},{"$f":"MAX(O37:O48)","v":0}]
[]
[null,null,null,null,null,null,null,null,null,{"$f":"+A6","v":2020},"mg/Nm3","Monthly 1/2 hourly mean","Monthly 1/2 hourly maximum","Monthly daily mean","Monthly daily maximum"]
[null,null,null,null,null,null,null,null,null,"A4","Jan"]
[null,null,null,null,null,null,null,null,null,null,"Feb"]
[null,null,null,null,null,null,null,null,null,null,"Mar"]
[null,null,null,null,null,null,null,null,null,null,"Apr"]
[null,null,null,null,null,null,null,null,null,null,"May"]
[null,null,null,null,null,null,null,null,null,null,"Jun"]
[null,null,null,null,null,null,null,null,null,null,"Jul"]
[null,null,null,null,null,null,null,null,null,null,"Aug"]
[null,null,null,null,null,null,null,null,null,null,"Sep"]
[null,null,null,null,null,null,null,null,null,null,"Oct"]
[null,null,null,null,null,null,null,null,null,null,"Nov"]
[null,null,null,null,null,null,null,null,null,null,"Dec"]
[null,null,null,null,null,null,null,null,null,null,"Annual",{"$f":"AVERAGE(L52:L63)","v":{"$error":"#DIV/0!"}},{"$f":"MAX(M52:M63)","v":0},{"$f":"AVERAGE(N52:N63)","v":{"$error":"#DIV/0!"}},{"$f":"MAX(O52:O63)","v":0}]
[]
[null,null,null,null,null,null,null,null,null,{"$f":"+A6","v":2020},"mg/Nm3","Monthly 1/2 hourly mean","Monthly 1/2 hourly maximum","Monthly daily mean","Monthly daily maximum"]
[null,null,null,null,null,null,null,null,null,"A5","Jan"]
[null,null,null,null,null,null,null,null,null,null,"Feb"]
[null,null,null,null,null,null,null,null,null,null,"Mar"]
[null,null,null,null,null,null,null,null,null,null,"Apr"]
[null,null,null,null,null,null,null,null,null,null,"May"]
[null,null,null,null,null,null,null,null,null,null,"Jun"]
[null,null,null,null,null,null,null,null,null,null,"Jul"]
[null,null,null,null,null,null,null,null,null,null,"Aug"]
[null,null,null,null,null,null,null,null,null,null,"Sep"]
[null,null,null,null,null,null,null,null,null,null,"Oct"]
[null,null,null,null,null,null,null,null,null,null,"Nov"]
[null,null,null,null,null,null,null,null,null,null,"Dec"]
[null,null,null,null,null,null,null,null,null,null,"Annual",{"$f":"AVERAGE(L67:L78)","v":{"$error":"#DIV/0!"}},{"$f":"MAX(M67:M78)","v":0},{"$f":"AVERAGE(N67:N78)","v":{"$error":"#DIV/0!"}},{"$f":"MAX(O67:O78)","v":0}]